Cogmind - Beta 16 @@@ ROGUE MODE // 2025.11.26 @ 23:30:49 Player: MolePlayingNice Result: Fortifying 0b10! Performance ------------- Evolutions (9) 4500 Regions Visited (34) 6800 Robots Destroyed (414) 2070 Value Destroyed (27043) 27043 Prototype IDs (91) 1820 Alien Tech Used (8) 1600 Bonus (21880) 21880 TOTAL SCORE: 65713 Bonus ------- High Alert Combat Kills 718 Follower Combat Kills 1131 Network Hubs Disabled 200 Aligned with FarCom 300 Met Imprinter 300 Destroyed Z-Imprinter 1000 Triggered Deep Caves Wall 500 Exposed GOLEM Chamber 500 Met Zhirov 300 Built Enhanced Grunts 300 Met R17 at Cetus 500 Found Hidden Lab 3000 Met R17 at Research 2000 Scanned by Researcher 1000 Pursued by Intercept 1000 Met MAIN.C 5000 Destroyed MAIN.C Shell 5000 Win 3000 Friendly Fire -3869 Cogmind --------- Core Integrity 699/1600 Matter 295/300 Energy 1081/3100 System Corruption 0% Temperature Cool (42) +ITN Movement Walking (155) Ox1 Location By MAIN.C's Side Parts ------- > --- POWER (3) -------- Singularity Reactor > --- PROPULSION (4) --- Assembled Alloy Leg High-density Centrium Leg High-density Centrium Leg High-density Centrium Leg > --- UTILITY (16) ----- High-capacity Storage Unit Assembled Biocell Array Assembled Biocell Array Assembled Metafiber Network Experimental Optical Array Assembled Combat Suite Experimental Weapon Cycler Centrium Heavy Armor Plating Assembled Alloy Armor SHELL Armor Graphene Brace GOLEM Unit > --- WEAPON (3) ------- Assembled Focal Cannon Potential Cannon > --- INVENTORY (22) --- Improved Quantum Reactor Zero-point Reactor Zero-point Reactor Centrium Leg Experimental Energy Well (598) Advanced Transmission Jammer Centrium Medium Armor Plating Advanced Force Field Microwarp Drive Heavy Quantum Rifle Heavy Quantum Rifle Compact HERF Cannon Enhanced Nova Cannon Enhanced Nova Cannon Perforator Micro-nuke Launcher Makeshift Laser Shovel Peak State ------------ > --- POWER ------------ Assembled Flux Generator Zero-point Reactor > --- PROPULSION ------- Assembled Alloy Leg High-density Centrium Leg High-density Centrium Leg High-density Centrium Leg > --- UTILITY ---------- High-capacity Storage Unit Assembled Biocell Array Assembled Biocell Array Assembled Metafiber Network Experimental Optical Array Assembled Combat Suite Assembled Alloy Armor SHELL Armor Experimental System Purifier GOLEM Unit Microwarp Drive > --- WEAPON ----------- Heavy Quantum Rifle Assembled Focal Cannon Assembled Focal Cannon > --- INVENTORY -------- Improved Quantum Reactor Zero-point Reactor Singularity Reactor Centrium Leg Experimental Energy Well Experimental Weapon Cycler Advanced Transmission Jammer Centrium Heavy Armor Plating Graphene Brace Advanced Force Field Compact HERF Cannon Enhanced Nova Cannon Enhanced Nova Cannon Potential Cannon Perforator Micro-nuke Launcher Makeshift Laser Shovel [Rating: 268] Favorites ----------- Power Assembled Flux Generator Engine Angular Momentum Engine Power Core Light Fission Core Reactor Assembled Flux Generator Propulsion Assembled Alloy Leg Treads Advanced Treads Leg Assembled Alloy Leg Wheel Armored Huge Wheel Utility Assembled Biocell Array Device Assembled Combat Suite Storage Assembled Biocell Array Processor Advanced Signal Interpreter Hackware Hacking Suite Protection Assembled Alloy Armor Artifact Microwarp Drive Weapon Assembled Focal Cannon Energy Gun Gatling Laser Energy Cannon Assembled Focal Cannon Ballistic Gun Assault Rifle Ballistic Cannon Antimatter Cannon Launcher Heavy Rocket Launcher Special Weapon Makeshift Laser Shovel Slashing Weapon Chainsword Build | -11 -10 -10 -10 -9 -8 -7 -6 -6 -6 -6 -6 -6 -6 -5 -5 -5 -5 -5 -5 -4 -4 -4 -4 -4 -4 -3 -3 -3 -3 -2 -2 -2 -1 -1 ------- Run | Yrd Mat Min Exi Min Mat Fac Fac Was Fac Low Low Zio Dee Pro Fac Ext Cet Arc Hub Fac Was Fac Upp Upp Zhi Pro Res Arm Lab Res Tes Sec Acc Com Slots Evolved 18 | . . . . . 4 2 2 . . . . . . . 2 . . . . 2 . . . . . . 2 . . 2 . . 2 . Power 1 | . . . . . . . 1 . . . . . . . . . . . . . . . . . . . . . . . . . . . Propulsion 2 | . . . . . . . . . . . . . . . . . . . . . . . . . . . 1 . . 1 . . . . Utility 14 | . . . . . 4 2 1 . . . . . . . 2 . . . . 1 . . . . . . 1 . . 1 . . 2 . Weapon 1 | . . . . . . . . . . . . . . . . . . . . 1 . . . . . . . . . . . . . . Parts Attached 225 | . 10 1 . 1 20 17 16 2 33 5 1 3 7 . 8 5 4 2 9 4 2 10 . 1 2 1 7 . 5 5 4 16 . 24 Power 22 | . 1 1 . . 1 2 2 1 5 2 . . . . 1 . . . . . . . . . . . . . 1 . 1 . . 4 Engine 9 | . 1 1 . . 1 1 1 1 3 . . . . . . . . . . . . . . . . . . . . . . . . . Core 5 | . . . . . . 1 . . 2 1 . . . . 1 . . . . . . . . . . . . . . . . . . . Reactor 8 | . . . . . . . 1 . . 1 . . . . . . . . . . . . . . . . . . 1 . 1 . . 4 Propulsion 28 | . 3 . . . 3 3 3 . 4 . . . . . . . . . . . . . . . . . 2 . . 2 1 3 . 4 Treads 11 | . 3 . . . 3 2 2 . 1 . . . . . . . . . . . . . . . . . . . . . . . . . Leg 12 | . . . . . . . . . . . . . . . . . . . . . . . . . . . 2 . . 2 1 3 . 4 Wheel 5 | . . . . . . 1 1 . 3 . . . . . . . . . . . . . . . . . . . . . . . . . Hover . | . . . . . . . . . . . . . . . . . . . . . . . . . . . . . . . . . . . Flight . | . . . . . . . . . . . . . . . . . . . . . . . . . . . . . . . . . . . Utility 121 | . 2 . . . 10 8 6 . 14 1 . 1 4 . 6 5 4 2 9 2 2 9 . 1 2 1 3 . 3 2 1 13 . 10 Device 53 | . 1 . . . 7 5 3 . 3 . . . 2 . 2 1 . 1 4 2 1 5 . 1 1 1 . . 1 2 . 4 . 6 Storage 10 | . 1 . . . 1 1 1 . 2 . . . . . . 1 . . 1 . . . . . . . . . . . . 1 . 1 Processor 13 | . . . . . 1 1 . . 1 1 . . 1 . . . . . 1 . . 2 . . . . 1 . . . 1 3 . . Hackware 8 | . . . . . . . 2 . . . . . . . . . . . 2 . . . . . . . 1 . 1 . . 2 . . Protection 36 | . . . . . 1 1 . . 8 . . 1 1 . 4 3 4 1 1 . 1 2 . . 1 . 1 . 1 . . 2 . 3 Artifact 1 | . . . . . . . . . . . . . . . . . . . . . . . . . . . . . . . . 1 . . Weapon 54 | . 4 . . 1 6 4 5 1 10 2 1 2 3 . 1 . . . . 2 . 1 . . . . 2 . 1 1 1 . . 6 Energy Gun 23 | . . . . . 6 2 2 . 8 1 . . 1 . . . . . . . . . . . . . . . 1 . . . . 2 Energy Cannon 11 | . . . . . . . 1 . . . . . . . . . . . . 2 . 1 . . . . 2 . . 1 . . . 4 Ballistic Gun 3 | . 2 . . . . . . . . 1 . . . . . . . . . . . . . . . . . . . . . . . . Ballistic Cannon 5 | . . . . 1 . . 1 . 2 . . . . . . . . . . . . . . . . . . . . . 1 . . . Launcher 5 | . 2 . . . . 1 1 1 . . . . . . . . . . . . . . . . . . . . . . . . . . Special Weapon 6 | . . . . . . . . . . . 1 2 2 . 1 . . . . . . . . . . . . . . . . . . . Impact Weapon . | . . . . . . . . . . . . . . . . . . . . . . . . . . . . . . . . . . . Slashing Weapon 1 | . . . . . . 1 . . . . . . . . . . . . . . . . . . . . . . . . . . . . Piercing Weapon . | . . . . . . . . . . . . . . . . . . . . . . . . . . . . . . . . . . . Special Melee Weapon . | . . . . . . . . . . . . . . . . . . . . . . . . . . . . . . . . . . . Unidentified Prototypes 51 | . . . . . 2 1 4 . 2 . 1 1 . . . . 1 . 5 1 . . . . 3 . 2 1 3 1 2 9 . 12 Corrupted Parts 1 | . . . . . . . . . . . . . . . . . . . 1 . . . . . . . . . . . . . . . System Corruption 2 | . . . . . . . . . . . . . . . . . . . 2 . . . . . . . . . . . . . . . Parts Lost 52 | . 2 . . . . 6 3 3 7 . . . 5 1 9 1 1 . 1 . 1 . . . . . . 1 . . . 4 . 7 Power 7 | . 1 . . . . 2 . 1 . . . . 1 . 1 . . . . . . . . . . . . . . . . . . 1 Propulsion 7 | . 1 . . . . 1 1 1 3 . . . . . . . . . . . . . . . . . . . . . . . . . Utility 33 | . . . . . . 1 2 1 4 . . . 4 1 7 1 1 . 1 . 1 . . . . . . . . . . 4 . 5 Weapon 5 | . . . . . . 2 . . . . . . . . 1 . . . . . . . . . . . . 1 . . . . . 1 Highest Loss Streak 8 | . 1 . . . . 3 1 3 2 . . . 2 1 8 1 1 . 1 . 1 . . . . . . 1 . . . 1 . 3 To Critical Strikes 1 | . . . . . . . . . . . . . . . . . 1 . . . . . . . . . . . . . . . . . Average Backups 14 | 6 11 14 14 15 14 14 14 13 14 13 13 13 12 11 11 13 17 18 18 18 18 16 18 18 17 18 17 17 4 16 16 15 14 15 Power 1 | 1 . . 1 1 1 . 1 . 1 . 1 1 1 1 . 2 2 1 2 2 2 2 2 2 2 2 2 2 . 1 1 2 3 3 Propulsion . | 4 4 3 3 3 3 2 2 1 . 1 1 1 . . . . . . . . . . . . . . . . . . . . 1 . Utility 6 | . 2 4 5 6 3 2 2 2 3 4 4 5 5 5 6 6 10 11 11 11 12 11 13 13 13 14 12 11 1 8 9 7 3 4 Weapon 4 | 1 4 6 5 5 6 8 8 9 8 6 5 5 4 2 2 3 3 3 3 3 2 2 2 2 . . . 2 1 4 4 3 3 5 Tool/Special . | . . . . . . . . . . . . . . . . . . . . . . . . . . . . . . . . . . . Unused Backups 57 | . 2 2 1 . 7 3 2 . 2 . 1 1 2 1 1 3 2 1 2 . 1 . . . . . 2 . 1 1 1 5 . 13 Power 9 | . . . . . 1 1 1 . . . . . . . 1 1 1 . . . . . . . . . . . . . . . . 3 Propulsion 10 | . 1 1 . . 3 . . . . . . . 1 . . . . . 1 . . . . . . . . . . . . 2 . 1 Utility 17 | . 1 1 . . 1 . . . . . . . 1 1 . 1 1 . 1 . . . . . . . 2 . . 1 . 3 . 3 Weapon 18 | . . . 1 . 2 2 1 . 2 . 1 . . . . 1 . 1 . . 1 . . . . . . . 1 . 1 . . 4 Tool/Special 3 | . . . . . . . . . . . . 1 . . . . . . . . . . . . . . . . . . . . . 2 Average Slot Usage (%) 87 | . 98 100 100 99 97 92 97 90 94 85 86 84 80 85 90 87 87 85 90 90 78 89 94 94 78 93 89 81 54 86 86 86 87 84 Engine 1 | . 13 14 14 14 9 3 6 6 7 . . . . . . . . . . . . . . . . . . . . . . . . . Core 1 | . . . . . . 3 . . 3 8 6 6 2 . 5 . . . . . . . . . . . . . . . . . . . Reactor 4 | . . . . . . . 5 6 2 4 6 6 5 6 2 5 5 5 5 5 5 5 5 5 5 5 4 4 2 7 8 8 7 6 Treads 2 | . 18 28 28 28 18 9 9 13 5 . . . . . . . . . . . . . . . . . . . . . . . . . Leg 9 | . 9 . . . . . . . . . . . 5 13 11 11 11 10 11 10 10 10 10 10 10 10 11 9 10 15 16 16 15 14 Device 20 | . 12 14 14 14 28 23 24 17 11 20 20 19 17 28 27 24 24 26 15 20 12 22 25 26 25 25 20 19 8 19 17 16 25 24 Storage 12 | . 14 14 14 14 10 12 13 13 9 6 6 6 9 13 16 17 17 15 17 15 15 15 15 15 15 15 14 14 10 12 12 11 7 10 Processor 5 | . . . . . 7 11 6 6 6 10 13 13 7 . . . . . 2 5 . 1 10 10 10 10 14 14 12 8 10 7 7 3 Hackware 1 | . . . . . . . 11 13 13 2 . . . . . . . . 3 . . . . . . . . . 2 . . 3 3 . Protection 9 | . . . . . 5 6 . . 15 12 13 13 13 10 12 15 15 13 20 21 17 17 10 10 10 10 9 9 1 8 8 7 6 9 Energy Gun 2 | . . . . . 12 14 7 6 9 12 11 10 2 . . . . . . . . . . . . . . . . . . . . . Energy Cannon 7 | . . . . . . . . . . . . . 3 12 10 11 11 10 11 11 15 14 15 15 . 10 11 10 3 11 11 11 11 9 Ballistic Gun 1 | . 23 23 28 22 2 . . . . . . . . . . . . . . . . . . . . . . . . . . . . . Peak Build Rating 268 | 6 8 11 12 12 34 45 65 65 65 68 70 71 130 134 152 149 149 156 156 167 166 163 155 156 155 149 169 167 194 212 214 234 248 268 Average Rating 132 | 6 7 8 11 11 27 38 60 56 56 66 67 67 94 128 138 135 144 149 152 162 154 157 154 154 131 148 163 159 107 206 206 213 230 240 On Entrance 113 | 6 6 8 11 12 12 30 43 65 54 65 68 68 70 127 132 140 135 148 155 156 166 146 155 155 155 149 149 167 149 191 205 212 234 245 Avg Prop Armor Cover (%) 12 | . . . . . . 9 8 . 6 . . . . . . . . . . . . . . . . . . . 32 2 . . . . Naked Turns . | . . . . . . . . . . . . . . . . . . . . . . . . . . . . . . . . . . . Heaviest Build 204 | 14 30 29 29 30 41 50 62 61 75 70 74 78 105 105 117 136 136 136 142 150 187 187 144 144 144 130 154 154 183 195 195 199 195 204 Greatest Support 140 | 20 40 40 40 40 44 44 44 44 44 28 28 28 80 80 80 80 80 80 80 60 60 60 60 60 60 60 85 55 105 110 110 120 120 140 Greatest Overweight (x) 6 | . 1 . . . . 4 6 2 4 2 2 2 2 1 1 1 1 1 2 2 3 3 2 2 2 2 2 2 3 2 1 2 1 1 Average Overweight (x) 1 | . . . . . . 2 2 1 3 2 2 2 1 1 . 1 1 1 1 2 2 2 2 2 1 2 1 2 . 1 1 1 1 . Largest Inventory Capacity 22 | 8 15 15 15 15 15 15 15 15 15 15 15 15 15 15 15 20 20 20 20 20 20 20 20 20 20 20 20 20 20 20 20 22 22 22 Average Capacity 17 | 8 14 15 15 15 15 15 15 15 15 15 15 15 14 14 14 15 20 19 20 20 20 20 20 20 20 20 20 20 12 20 20 20 22 21 Most Carried 22 | 6 15 15 15 15 15 15 15 15 15 15 15 15 15 15 15 15 20 20 20 20 20 20 20 20 20 20 20 20 20 20 20 22 22 22 Average Carried 16 | 6 11 14 14 15 14 14 14 13 14 14 14 14 14 14 13 14 18 19 19 19 20 19 20 20 19 19 19 20 5 19 19 19 19 20 Final Capacity 22 | 8 15 15 15 15 15 15 15 15 15 15 15 15 15 15 15 20 20 20 20 20 20 20 20 20 20 20 20 20 20 20 20 22 22 22 Final Carried 21 | 6 15 15 15 15 15 15 15 13 15 15 15 15 15 13 14 15 19 20 20 20 20 20 20 20 20 20 20 20 20 20 20 21 21 20 Class Distribution -------------------- 28% | Golem 14% | Mutant 9% | Hacker-Golem 8% | Hacker-Mutant 8% | Skirmisher 6% | Scavenger-Skirmisher 5% | Tank 4% | Scavenger-Golem 4% | Commander-Golem 3% | Scavenger-Tank 3% | Scavenger-Mutant Dominant Class ---------------- Mutant | -10/Materials Mutant | -10/Mines Mutant | -10/Exiles Mutant | -9/Mines Scavenger-Skirmisher | -8/Materials Mutant | -7/Factory Hacker-Mutant | -6/Factory Hacker-Mutant | -6/Waste Hacker-Mutant | -6/Factory Scavenger-Skirmisher | -6/Lower Caves Scavenger-Skirmisher | -6/Lower Caves Scavenger-Skirmisher | -6/Zion Golem | -6/Deep Caves Golem | -5/Proximity Caves Golem | -5/Factory Golem | -5/Extension Commander-Golem | -5/Cetus Commander-Golem | -5/Archives Scavenger-Mutant | -5/Hub_04(d) Scavenger-Mutant | -4/Factory Tank | -4/Waste Scavenger-Tank | -4/Factory Skirmisher | -4/Upper Caves Skirmisher | -4/Upper Caves Mutant | -4/Zhirov Skirmisher | -3/Proximity Caves Tank | -3/Research Skirmisher | -3/Armory Hacker-Mutant | -3/Lab Golem | -2/Research Golem | -2/Testing Hacker-Golem | -2/Section 7 Hacker-Golem | -1/Access Scavenger-Golem | -1/Command Resources | -11 -10 -10 -10 -9 -8 -7 -6 -6 -6 -6 -6 -6 -6 -5 -5 -5 -5 -5 -5 -4 -4 -4 -4 -4 -4 -3 -3 -3 -3 -2 -2 -2 -1 -1 ----------- Run | Yrd Mat Min Exi Min Mat Fac Fac Was Fac Low Low Zio Dee Pro Fac Ext Cet Arc Hub Fac Was Fac Upp Upp Zhi Pro Res Arm Lab Res Tes Sec Acc Com Matter Collected 8059 | 200 175 294 150 10 321 429 383 569 425 148 53 228 511 44 388 201 132 101 162 . 108 309 62 124 . 137 273 . . 828 229 626 . 439 Remotely . | . . . . . . . . . . . . . . . . . . . . . . . . . . . . . . . . . . . Salvage Created 24200 | . 289 135 . . 749 1305 851 999 571 92 . . 777 531 2185 624 367 306 938 . 1724 1117 . 119 . 107 217 74 . 3172 889 2435 238 3389 Parts 1039 | . 26 9 . . 31 50 35 . 29 6 . . 8 22 128 28 16 18 49 . 30 51 . 3 . 3 20 1 . 151 58 150 13 104 Haulers Intercepted 8 | . . . . . 2 2 1 . . . . . . . 1 . . . 2 . . . . . . . . . . . . . . . Recyclers Shooed 15 | . . . . . 3 3 . . 1 . . . . . 3 1 . . . . . 2 . . . . . . . 2 . . . . Parts Field Recycled . | . . . . . . . . . . . . . . . . . . . . . . . . . . . . . . . . . . . Retrieved Matter . | . . . . . . . . . . . . . . . . . . . . . . . . . . . . . . . . . . . Parts Self-Destructed 32 | . . . . . . . . . . . . 5 . 22 . . . . . . . . . 3 . 2 . . . . . . . . Prevented 2 | . . . . . . . . . . . . . . . . . . . . . . . . . . 2 . . . . . . . . Parts Restored . | . . . . . . . . . . . . . . . . . . . . . . . . . . . . . . . . . . . Kills | -11 -10 -10 -10 -9 -8 -7 -6 -6 -6 -6 -6 -6 -6 -5 -5 -5 -5 -5 -5 -4 -4 -4 -4 -4 -4 -3 -3 -3 -3 -2 -2 -2 -1 -1 ------- Run | Yrd Mat Min Exi Min Mat Fac Fac Was Fac Low Low Zio Dee Pro Fac Ext Cet Arc Hub Fac Was Fac Upp Upp Zhi Pro Res Arm Lab Res Tes Sec Acc Com Combat Hostiles Destroyed 371 | . 15 5 . . 10 23 19 6 13 . . . 44 13 41 8 3 . 10 . 6 18 . 1 . 2 2 1 . 39 10 32 3 47 Guns 46 | . 4 2 . . 6 17 10 . 7 . . . . . . . . . . . . . . . . . . . . . . . . . Cannons 195 | . . . . . 1 . 6 . 1 . . . 1 10 35 8 3 . 10 . 4 13 . 1 . 2 2 1 . 35 7 29 3 23 AOE 95 | . 11 3 . . 3 2 3 6 3 . . . 40 3 6 . . . . . . 5 . . . . . . . . . 1 . 9 Classes Destroyed 27 | . 5 1 . . 2 2 . 1 2 1 . . 4 1 3 . . . . . . 1 . . . . . . . . 1 2 . 1 Worker 11 | . 1 . . . . 1 . . 2 . . . . . . 1 . . . . . . . . . . . . . 4 . 1 . 1 Builder 15 | . . . . . . . . . 1 . . . . . 3 . . . . . . 1 . . . . 3 . . 1 2 4 . . Tunneler 3 | . . . . . . . . . 2 . . . . . . . . . . . . . . . . . 1 . . . . . . . Hauler 8 | . . . . . 2 2 1 . . . . . . . 1 . . . 2 . . . . . . . . . . . . . . . Recycler 12 | . . 1 . . 3 3 . . 1 . . . . . 1 . . . . . . 1 . . . . . . . 2 . . . . Operator 13 | . 1 . . . . . . . . . . . . . . . . 9 . . . . . . . . . . . 2 . 1 . . Drone 4 | . . . . . . . . . . . . . . . . . . . . . . . . . . . . . . . . . . 4 Watcher 15 | . 1 . . . 1 1 1 . 1 . . . . . . 1 1 . 2 . . . . . . . . . . 1 . 1 1 3 Swarmer 52 | . 9 3 . . . 3 4 . 3 . . . . 7 5 . . . . . . 5 . . . . . . . 8 . 5 . . Grunt 70 | . 6 2 . . 8 10 9 . 2 . . . . 3 8 . . . 1 . . 5 . . . 2 . 1 . 6 . 4 . 3 Brawler 2 | . . . . . . . . . . . . . . . 1 . . . . . . . . . . . . . . 1 . . . . Duelist 1 | . . . . . . . . . . . . . . . . . . . . . . 1 . . . . . . . . . . . . Researcher 3 | . . . . . . . . . . . . . . . . . . . . . . . . . . . . . . . 2 1 . . Sentry 32 | . . . . . 2 4 3 . 2 . . . . 1 2 4 . . 1 . . 3 . 1 . . . . . 5 . 3 . 1 Specialist 7 | . . . . . . . . . . . . . . . 5 . . . . . . . . . . . . . . 2 . . . . Hunter 42 | . . . . . . 2 1 . 2 . . . . 1 7 2 . . 2 . . . . . . . 2 . . 6 3 3 1 10 Programmer 66 | . . . . . . 4 2 . 4 . . . . . 9 . . . 2 . . 4 . . . . . . . 11 7 12 2 9 Heavy 4 | . . . . . . . . . . . . . . . 3 . . . 1 . . . . . . . . . . . . . . . Q-Series 2 | . . . . . . . . . . . . . . . . . . . . . . . . . . . . . . . . 2 . . Behemoth 3 | . . . . . . . . . . . . . . 1 1 1 . . . . . . . . . . . . . . . . . . Compactor 12 | . . . . . . . . 6 . . . . . . . . . . . . 6 . . . . . . . . . . . . . Cetus Guard 3 | . . . . . . . . . . . . . . . . . 3 . . . . . . . . . . . . . . . . . S7 Guard 1 | . . . . . . . . . . . . . . . . . . . . . . . . . . . . . . . . 1 . . Enhanced Q-Series 20 | . . . . . . . . . . . . . . . . . . . . . . . . . . . . . . . . . . 20 Lightning 3 | . . . . . . . . . . . . . . . . . . . 3 . . . . . . . . . . . . . . . Executioner 2 | . . . . . . . . . . . . . . . . . . . . . . . . . . . . . . . . 2 . . Z-Light 2 | . . . . . . . . . . . . . 2 . . . . . . . . . . . . . . . . . . . . . Decomposer 1 | . . . . . . . . . . . . . . . . . . . . . . . . 1 . . . . . . . . . . Samaritan 1 | . . . . . . . . . . 1 . . . . . . . . . . . . . . . . . . . . . . . . Assembler 2 | . . . . . . . . . . . . . 2 . . . . . . . . . . . . . . . . . . . . . Assembled 38 | . . . . . . . . . . . . . 38 . . . . . . . . . . . . . . . . . . . . . Golem 3 | . . . . . . . . . . . . . 3 . . . . . . . . . . . . . . . . . . . . . Thug 1 | . . . . . . . . . . . . . . . . 1 . . . . . . . . . . . . . . . . . . Guerrilla 1 | . . . . . . . . . . . . . . . . . 1 . . . . . . . . . . . . . . . . . Commander 1 | . . . . . . . . . . 1 . . . . . . . . . . . . . . . . . . . . . . . . Best Kill Streak 39 | . 4 3 . . 6 6 4 2 3 . . . 39 5 10 3 3 7 3 . 3 5 . 1 . 1 4 1 . 8 4 5 3 8 Combat Bots Only 37 | . 3 3 . . 5 5 4 2 3 . . . 37 5 10 3 2 . 3 . 3 5 . 1 . 1 2 1 . 6 3 5 3 8 Max Kills in Single Turn 19 | . 3 3 . . 2 2 3 1 2 1 . . 19 3 3 2 1 1 1 . 1 3 . 1 . 1 4 1 . 2 1 2 1 5 Gunslinging . | . . . . . . . . . . . . . . . . . . . . . . . . . . . . . . . . . . . Exploded 19 | . 2 3 . . 2 2 3 1 1 . . . 19 3 2 . . . . . . 3 . . . . . . . . . 1 . 5 Melee . | . . . . . . . . . . . . . . . . . . . . . . . . . . . . . . . . . . . Uniques/NPCs Destroyed 3 | . . . . . . . . . . . . . 1 . . . 1 . . . . . . . . . . . . . . . . 1 Z-Imprinter (-6/Deep Caves) A7 (-5/Cetus) MAIN.C Shell (-1/Command) Combat | -11 -10 -10 -10 -9 -8 -7 -6 -6 -6 -6 -6 -6 -6 -5 -5 -5 -5 -5 -5 -4 -4 -4 -4 -4 -4 -3 -3 -3 -3 -2 -2 -2 -1 -1 -------- Run | Yrd Mat Min Exi Min Mat Fac Fac Was Fac Low Low Zio Dee Pro Fac Ext Cet Arc Hub Fac Was Fac Upp Upp Zhi Pro Res Arm Lab Res Tes Sec Acc Com Hostile Shots Fired 2394 | . 59 2 . . 39 183 119 1 196 2 1 . 59 103 235 35 22 12 31 . 1 69 . 6 . 6 59 13 . 268 144 207 12 510 Missed 864 | . 17 1 . . 13 60 42 . 60 . . . 10 39 86 9 9 3 9 . . 36 . 2 . 2 29 8 . 113 52 75 2 187 Hits 1530 | . 42 1 . . 26 123 77 1 136 2 1 . 49 64 149 26 13 9 22 . 1 33 . 4 . 4 30 5 . 155 92 132 10 323 Melee 26 | . . . . . . . . 1 . 2 1 . 2 . 3 . . . . . 1 3 . . . . . . . . . 13 . . Projectile 1504 | . 42 1 . . 26 123 77 . 136 . . . 47 64 146 26 13 9 22 . . 30 . 4 . 4 30 5 . 155 92 119 10 323 AOE 5 | . . . . . . . . . . . . . . . . . . . . . . . . . . . . . . 1 . . . 4 Critical Strikes 78 | . 1 . . . 2 2 . 1 7 . . . . 3 6 1 5 . 5 . 1 3 . . . 1 . . . 6 5 6 1 22 Actively Blocked 22 | . . . . . . . . . 1 . . . . . . . . . . . . . . . . . . . . . . . 1 20 Part Disruptions 16 | . . . . . . . . . . . . . . . . . . . . . . . . . . . . . . 2 . 3 1 10 Damage Taken 24698 | . 601 13 . . 418 1243 988 526 1673 . . . 1754 1073 3170 489 269 195 707 . 51 465 . 95 . 62 299 52 . 1435 637 1876 140 6467 Core 2822 | . 76 . . . 13 157 104 112 85 . . . 249 134 354 47 . 25 . . . 15 . . . . 10 5 . 112 64 359 68 833 Absorbed by Shields 5321 | . . . . . . . . . . . . . . . . 8 53 . . . . 35 . . . . 204 20 . 927 553 1294 68 2159 Redirected to Shielding 122 | . . . . . . . . . 10 . . . 112 . . . . . . . . . . . . . . . . . . . . . Ignored by Resistances 6948 | . . . . . . . . . 146 . . . 48 214 399 101 65 40 136 . 9 235 . 20 . 14 102 15 . 1478 762 958 98 2108 Regen/Repaired (Parts) 2163 | . . . . . . . . . 147 . . . . . . . . . . . . 112 . . . . . . . . 54 119 77 1654 Core Remaining (%) 70 | 100 . . . 69 97 77 . . . . . . . 19 . . . . 57 . . . . . . 98 . . 92 . . 50 . 43 Volleys Fired 1312 | . 36 5 . . 42 55 43 19 65 9 13 . 44 36 112 31 24 23 39 2 34 42 3 8 . 6 26 6 25 141 54 132 26 211 Largest 3 | . 2 2 . . 2 2 2 1 2 2 2 . 2 2 2 2 2 2 2 1 3 3 1 3 . 2 2 3 1 3 3 3 3 3 Hottest 282 | . 60 40 . . 160 160 160 45 160 160 160 . 80 50 58 50 50 50 50 25 135 148 25 148 . 188 188 282 90 120 94 94 75 265 Shots Fired 2294 | . 63 9 . . 77 107 85 19 115 12 16 . 49 55 195 52 46 43 76 2 87 100 4 19 . 14 33 11 25 263 103 261 35 318 Gun 438 | . 54 8 . . 66 106 60 1 96 12 5 . 27 . . . . . . . . . . . . . . . . . . . . 3 Cannon 1796 | . . . . . 8 . 24 . 17 . 11 . 8 54 188 52 46 43 76 2 87 98 4 19 . 14 32 11 25 263 103 261 35 315 Launcher 46 | . 9 1 . . 3 1 1 18 2 . . . 5 1 2 . . . . . . 2 . . . . 1 . . . . . . . Special 14 | . . . . . . . . . . . . . 9 . 5 . . . . . . . . . . . . . . . . . . . Kinetic 158 | . 53 8 . . 11 . 24 . 17 5 11 . 2 . 27 . . . . . . . . . . . . . . . . . . . Thermal 1962 | . . . . . 63 106 60 1 90 7 5 . 10 54 161 52 46 43 76 2 87 98 4 19 . 14 32 7 25 239 89 252 35 285 Explosive 60 | . 9 1 . . 3 1 1 18 2 . . . 14 1 7 . . . . . . 2 . . . . 1 . . . . . . . Electromagnetic 114 | . 1 . . . . . . . 6 . . . 23 . . . . . . . . . . . . . . 4 . 24 14 9 . 33 Robot Hit Streak 37 | . 8 5 . . 12 28 13 21 9 7 3 . 8 37 22 5 22 25 12 . 17 9 . 10 . 7 8 4 . 24 14 29 9 22 Robot Miss Streak 6 | . 6 1 . . 3 6 4 3 6 2 3 . 5 1 3 3 3 2 2 . 2 3 . 2 . 2 1 2 . 4 2 3 1 4 Penetration Max . | . . . . . . . . . . . . . . . . . . . . . . . . . . . . . . . . . . . Secondary Targets 2 | . . . . . . 1 . . 1 . . . . . . . . . . . . . . . . . . . . . . . . . Max Gunslinging Chain 1 | . . . . . . 1 . . 1 . . . . . . . . . . . . . . . . . . . . . . . . . Shots Hit Robots 1403 | . 26 6 . . 53 92 68 17 77 12 4 . 31 46 130 27 31 30 47 . 60 47 . 6 . 7 11 6 . 162 53 129 10 215 Core Hits 888 | . 23 6 . . 36 80 62 26 51 8 2 . 115 20 76 15 16 19 24 . 12 33 . 4 . 3 11 3 . 70 17 59 6 91 Critical Kills 11 | . . . . . . . . . . . . . . . . . . . . . 2 . . . . . . . . . . . . 9 Critical Parts Destroyed 1 | . . . . . . . . . . 1 . . . . . . . . . . . . . . . . . . . . . . . . Critical Strikes 19 | . . . . . 1 . 1 . . 1 . . 3 . . . . . . . 2 . . . . . . . . 1 1 . . 9 Burn 2 | . . . . . 1 . 1 . . . . . . . . . . . . . . . . . . . . . . . . . . . Meltdown 11 | . . . . . . . . . . . . . . . . . . . . . 2 . . . . . . . . . . . . 9 Destroy 1 | . . . . . . . . . . 1 . . . . . . . . . . . . . . . . . . . . . . . . Corrupt 3 | . . . . . . . . . . . . . 1 . . . . . . . . . . . . . . . . 1 1 . . . Sever 2 | . . . . . . . . . . . . . 2 . . . . . . . . . . . . . . . . . . . . . Melee Attacks 7 | . . . . . . 3 . . 4 . . . . . . . . . . . . . . . . . . . . . . . . . Impact . | . . . . . . . . . . . . . . . . . . . . . . . . . . . . . . . . . . . Slashing 7 | . . . . . . 3 . . 4 . . . . . . . . . . . . . . . . . . . . . . . . . Piercing . | . . . . . . . . . . . . . . . . . . . . . . . . . . . . . . . . . . . Sneak Attacks . | . . . . . . . . . . . . . . . . . . . . . . . . . . . . . . . . . . . Combat Hostiles . | . . . . . . . . . . . . . . . . . . . . . . . . . . . . . . . . . . . Follow-up Attacks . | . . . . . . . . . . . . . . . . . . . . . . . . . . . . . . . . . . . Damage Inflicted 81120 | . 1058 198 . 14 1476 2315 2030 4392 2352 259 66 . 3861 2314 8007 1447 1681 1503 2359 . 2321 2474 . 246 . 244 905 229 . 8191 2566 6245 492 21875 Guns 7350 | . 299 72 . . 989 2222 1262 . 1661 259 66 . 441 . . . . . . . . . . . . . . . . . . . . 79 Cannons 54395 | . . . . . 36 . 585 . 322 . . . 31 2082 6155 1422 1681 1503 2334 . 2321 2096 . 246 . 244 385 229 . 7992 2533 5984 492 15722 Explosions 18695 | . 742 113 . . 434 88 183 4392 369 . . . 3281 232 1688 . . . . . . 338 . . . . 520 . . . . 261 . 6054 Melee . | . . . . . . . . . . . . . . . . . . . . . . . . . . . . . . . . . . . Ramming 416 | . 17 13 . 14 17 5 . . . . . . . . 8 25 . . 25 . . 40 . . . . . . . 199 33 . . 20 Kinetic 2134 | . 299 72 . . 67 . 585 . 322 106 . . . . 683 . . . . . . . . . . . . . . . . . . . Thermal 63407 | . 247 . . . 958 2222 1262 . 1661 153 66 . 118 2082 5792 1422 1681 1503 2334 . 2321 2096 . 246 . 244 385 116 . 7281 2088 5980 492 20657 Explosive 11764 | . 495 113 . . 434 88 183 4392 320 . . . 3281 232 1368 . . . . . . 338 . . . . 520 . . . . . . . Electromagnetic 3135 | . . . . . . . . . 49 . . . 354 . . . . . . . . . . . . . . 113 . 711 445 265 . 1198 Impact . | . . . . . . . . . . . . . . . . . . . . . . . . . . . . . . . . . . . Slashing 264 | . . . . . . . . . . . . . 108 . 156 . . . . . . . . . . . . . . . . . . . Piercing . | . . . . . . . . . . . . . . . . . . . . . . . . . . . . . . . . . . . Highest Corruption 25 | . . . . . . . 1 25 25 25 25 25 . . 10 10 10 10 8 . 15 15 15 15 15 15 . . . 5 8 12 1 16 Average Corruption 10 | . . . . . . . 1 12 25 25 25 25 . . 7 10 10 5 5 . 14 15 15 15 15 15 . . . 2 5 9 1 3 Corruption Purged 26 | . . . . . . . . . . . . . . . . . . 6 . . . . . . . . . . . . . . . 20 Corruption Blocked . | . . . . . . . . . . . . . . . . . . . . . . . . . . . . . . . . . . . Effects 674 | . . . . . . . 8 10 81 23 15 3 . . 49 59 28 33 19 . 30 49 22 31 13 21 . . . 15 31 90 3 41 Message Errors 153 | . . . . . . . 3 1 17 5 8 1 . . 8 17 7 9 8 . 3 10 4 3 5 1 . . . 4 8 21 . 10 Matter Fused 155 | . . . . . . . 3 1 16 4 3 1 . . 17 16 6 7 3 . 6 8 8 7 3 10 . . . 3 8 15 . 10 Heat Flow Errors 71 | . . . . . . . 1 1 13 1 1 . . . 7 9 2 4 2 . 4 5 2 4 1 2 . . . 1 . 8 . 3 Energy Discharges 87 | . . . . . . . 1 1 12 3 2 . . . 4 5 1 2 2 . 6 7 3 5 3 1 . . . . 5 19 . 5 Parts Rejected 8 | . . . . . . . . . 2 . . . . . . . . . 1 . . 1 . . . . . . . 1 . 3 . . Parts Fused 6 | . . . . . . . . 1 . . . . . . 1 . . . . . 1 1 . . . . . . . . . 2 . . Data Loss (minor) 81 | . . . . . . . . . 7 7 . 1 . . 7 3 6 4 . . 4 6 4 3 . 2 . . . 4 3 11 1 8 Data Loss (major) 31 | . . . . . . . . 1 2 . . . . . 1 4 1 1 2 . 2 3 . 2 1 2 . . . 2 2 4 . 1 Misfires 36 | . . . . . . . . 1 2 1 1 . . . 3 1 1 1 1 . 2 6 1 6 . 2 . . . . 3 3 . 1 Alerts 18 | . . . . . . . . 2 5 . . . . . . 2 1 1 . . . . . . . 1 . . . . 2 2 1 1 Misdirections 1 | . . . . . . . . . . . . . . . . . . . . . 1 . . . . . . . . . . . . . Weapon Failures 27 | . . . . . . . . 1 5 2 . . . . 1 2 3 4 . . 1 2 . 1 . . . . . . . 2 1 2 Overload Shots . | . . . . . . . . . . . . . . . . . . . . . . . . . . . . . . . . . . . Overflow Damage 3248 | . 67 . . . . . 7 16 46 . . . 94 16 457 23 67 145 5 . 16 34 . . . . 7 . . 333 384 254 12 1265 Projectiles 2595 | . . . . . . . 7 . 16 . . . . 16 334 23 67 145 5 . 16 28 . . . . . . . 320 384 254 12 968 Explosions 634 | . 67 . . . . . . 16 30 . . . 94 . 123 . . . . . . . . . . . 7 . . . . . . 297 Melee 19 | . . . . . . . . . . . . . . . . . . . . . . 6 . . . . . . . 13 . . . . Knockbacks 9 | . . . . . . . 4 . 1 . . . . . 2 . . . 1 . . 1 . . . . . . . . . . . . Impact 2 | . . . . . . . . . . . . . . . . . . . 1 . . 1 . . . . . . . . . . . . Kinetic 7 | . . . . . . . 4 . 1 . . . . . 2 . . . . . . . . . . . . . . . . . . . Secondary . | . . . . . . . . . . . . . . . . . . . . . . . . . . . . . . . . . . . Self-Inflicted Damage 1016 | . 190 . . . . . . 500 100 . . . 79 . 83 . . . . . . 21 . . . . 28 . . . . . . 15 Shots 34 | . 4 . . . . . . 21 2 . . . 3 . 1 . . . . . . 1 . . . . 1 . . . . . . 1 Rammed 7 | . 1 2 . 1 1 2 . . . . . . . . . . . . . . . . . . . . . . . . . . . . Targets Rammed 31 | . 4 3 . 1 1 2 . . . . . . . . 2 2 . . 2 . . 2 . . . . . . . 9 2 . . 1 Kicked 23 | . 3 . . . . . . . . . . . . . 2 2 . . 2 . . 2 . . . . . . . 9 2 . . 1 Crushed 1 | . . 1 . . . . . . . . . . . . . . . . . . . . . . . . . . . . . . . . Highest Temperature 344 | . 18 . . . 126 20 94 116 327 138 187 . 344 13 217 228 170 227 260 . 186 240 226 95 209 202 104 241 . 210 24 194 . 202 Average Temperature 75 | . 10 . . . 29 7 47 68 112 46 55 . 143 13 83 100 76 99 128 . 43 62 116 53 119 28 39 112 . 59 16 57 . 22 Received Heat Transfer 3178 | . 138 9 . . 261 309 294 . 225 . . . 237 198 303 78 9 . 36 . . 85 . 27 . 18 . 6 . 155 8 377 . 405 Effects 1 | . . . . . . . . . . . . . 1 . . . . . . . . . . . . . . . . . . . . . Shutdowns 1 | . . . . . . . . . . . . . 1 . . . . . . . . . . . . . . . . . . . . . Siege Activations . | . . . . . . . . . . . . . . . . . . . . . . . . . . . . . . . . . . . Martial Activations . | . . . . . . . . . . . . . . . . . . . . . . . . . . . . . . . . . . . Shielding Activations . | . . . . . . . . . . . . . . . . . . . . . . . . . . . . . . . . . . . Robots Disrupted 1 | . . . . . . . . . . . . . . . . . . . . . . . . . . 1 . . . . . . . . Combat Hostiles 1 | . . . . . . . . . . . . . . . . . . . . . . . . . . 1 . . . . . . . . Robots Corrupted 22 | . . . . . . . . . . . . . 3 . . . . . . . . 1 . . . . . . . 6 3 2 . 7 Combat Hostiles 18 | . . . . . . . . . . . . . 3 . . . . . . . . . . . . . . . . 4 3 2 . 6 Parts Fried 28 | . . . . . . . . . . . . . . . . . . . . . . 1 . . . . . . . 10 6 1 . 10 Impact Corruptions 3 | . . . . . . . . . . . . . . . . . . . . . . 1 . . . . . . . 2 . . . . Robots Melted 17 | . . . . . . 4 . . 2 . . . . . . . . . . . 2 . . . . . . . . . . . . 9 Combat Hostiles 17 | . . . . . . 4 . . 2 . . . . . . . . . . . 2 . . . . . . . . . . . . 9 Parts Melted 82 | . . . . . 7 16 8 . 12 . . . . 1 . . . . 1 . 2 5 . . . . . . . 6 4 7 . 13 Heat Transferred 45630 | . 200 . . . 2042 4875 2796 . 3548 350 150 . 225 1175 2798 750 782 850 1159 . 1728 1597 . 200 . 200 250 . . 3936 1050 3225 250 11494 Parts Sabotaged . | . . . . . . . . . . . . . . . . . . . . . . . . . . . . . . . . . . . Parts Stolen 3 | . . . . . . . . . . 2 1 . . . . . . . . . . . . . . . . . . . . . . . Parts Stripped . | . . . . . . . . . . . . . . . . . . . . . . . . . . . . . . . . . . . Power Chain Reactions 1 | . . . . . . . . . . . . . . . . . . . . . . . . . . . . . . . . 1 . . Alert | -11 -10 -10 -10 -9 -8 -7 -6 -6 -6 -6 -6 -6 -6 -5 -5 -5 -5 -5 -5 -4 -4 -4 -4 -4 -4 -3 -3 -3 -3 -2 -2 -2 -1 -1 ------- Run | Yrd Mat Min Exi Min Mat Fac Fac Was Fac Low Low Zio Dee Pro Fac Ext Cet Arc Hub Fac Was Fac Upp Upp Zhi Pro Res Arm Lab Res Tes Sec Acc Com Maximum Alert Level 3 | . 1 . . . . 1 1 . . . . . . . 3 2 1 1 2 1 . 1 . . . . . . . 2 1 2 1 2 Low Security (%) 68 | 100 80 100 . 100 100 99 86 100 100 . . . . . 28 6 93 99 13 91 100 62 . . . . 100 100 . 47 94 62 1 76 Level 1 19 | . 19 . . . . . 13 . . . . . . . 8 88 6 . 49 8 . 37 . . . . . . . 34 5 25 98 14 Level 2 9 | . . . . . . . . . . . . . . . 46 5 . . 36 . . . . . . . . . . 18 . 12 . 9 Level 3 1 | . . . . . . . . . . . . . . . 16 . . . . . . . . . . . . . . . . . . . Level 4 . | . . . . . . . . . . . . . . . . . . . . . . . . . . . . . . . . . . . Level 5 . | . . . . . . . . . . . . . . . . . . . . . . . . . . . . . . . . . . . High Security . | . . . . . . . . . . . . . . . . . . . . . . . . . . . . . . . . . . . Max Security . | . . . . . . . . . . . . . . . . . . . . . . . . . . . . . . . . . . . Peak Influence 773 | . 252 112 . . 150 203 237 95 153 . . . . . 773 432 212 194 443 205 38 331 . . . . 34 16 . 552 225 573 340 483 Initial 368 | . . 62 . . . 51 97 78 30 . . . . . 3 368 144 24 . 205 34 . . . . . . . . . 213 69 340 154 Average 165 | . 134 59 . . 64 87 130 64 48 . . . . . 409 282 126 61 331 152 2 125 . . . . 5 1 . 233 121 193 261 145 Influence Increases 11110 | . 540 205 . . 373 648 536 106 493 . . . . 300 1331 474 286 294 795 4 36 613 . 20 . 40 128 32 . 1044 405 1353 188 866 Destroy 0b10 Robot/C 6064 | . 300 140 . . 200 460 380 . 260 . . . . 260 820 220 140 80 360 . . 360 . 20 . 40 32 16 . 624 192 640 60 460 Destroy 0b10 Robot/NC 383 | . 15 5 . . 30 35 10 . 35 . . . . . 25 15 10 45 20 . . 10 . . . . 20 . . 40 8 35 5 20 Destroy Leader 1282 | . 62 30 . . 56 116 94 . 92 . . . . 40 172 32 . . 94 . . 80 . . . . 8 . . 130 24 124 12 116 Allied During Kill 510 | . . 18 . . . . . . . . . . . . . 69 118 125 180 . . . . . . . . . . . . . . . Successful Hack 236 | . . . . . 9 . 18 . 10 . . . . . 16 24 . . 7 . . 18 . . . . 20 . . 7 13 13 42 39 Select Force Hacks 50 | . . . . . . . . . . . . . . . . . . . 50 . . . . . . . . . . . . . . . Disable Machine 732 | . 45 . . . 15 . 15 . 60 . . . . . 60 90 . 30 15 . . 60 . . . . . 12 . 12 72 186 15 45 Destroy Structure 1565 | . 88 12 . . 18 22 19 106 21 . . . . . 178 24 18 14 54 4 36 70 . . . . 48 4 . 195 84 340 54 156 Partial Spotted 39 | . . . . . . . . . . . . . . . . . . . . . . . . . . . . . . 24 . . . 15 Lose Combat Pursuer 249 | . 30 . . . 45 15 . . 15 . . . . . 60 . . . 15 . . 15 . . . . . . . 12 12 15 . 15 Influence Decreases 10648 | . 379 333 33 . 259 563 510 287 395 142 . . . 294 584 969 482 356 374 326 135 288 325 20 . 40 128 32 . 663 662 910 513 646 Entered New Map 1991 | . . 99 33 . . 63 102 147 14 53 . . . . 3 385 114 38 . 216 65 . 121 . . . . . . . 168 55 227 88 Time Decay 7715 | . 359 214 . . 259 440 368 110 321 89 . . . 284 491 534 298 298 304 110 70 288 204 20 . 40 128 30 . 513 494 665 286 498 Lost Part 430 | . 20 . . . . 60 30 30 60 . . . . 10 90 10 10 . 10 . . . . . . . . . . . . 40 . 60 Lost Ally 212 | . . 20 . . . . 10 . . . . . . . . 40 60 20 60 . . . . . . . . 2 . . . . . . Purge Threat 300 | . . . . . . . . . . . . . . . . . . . . . . . . . . . . . . 150 . 150 . . Squads Dispatched 85 | . 3 . . . 2 9 4 . 4 . . . . . 13 . . . 6 1 . 3 . . . . 6 . . 5 6 13 3 7 Investigation 7 | . 1 . . . . 1 1 . . . . . . . . . . . 2 . . . . . . . 2 . . . . . . . Extermination 34 | . . . . . . 3 1 . 3 . . . . . 4 . . . 1 1 . 3 . . . . . . . 4 3 6 1 4 Reinforcement 30 | . 2 . . . 2 2 2 . 1 . . . . . 4 . . . 3 . . . . . . . 4 . . 1 3 3 1 2 Assault 3 | . . . . . . . . . . . . . . . 2 . . . . . . . . . . . . . . . . . . 1 Garrison 9 | . . . . . . 3 . . . . . . . . 3 . . . . . . . . . . . . . . . . 3 . . Intercept 2 | . . . . . . . . . . . . . . . . . . . . . . . . . . . . . . . . 1 1 . Searches Triggered . | . . . . . . . . . . . . . . . . . . . . . . . . . . . . . . . . . . . Unchained Authorized 1 | . . . . . . . . . . . . . . . . . . . . . . . . . . . . . . . . . 1 . Construction Impeded 5 | . . . . . 1 1 . . 1 . . . . . 1 . . . 1 . . . . . . . . . . . . . . . Haulers Reinforced 2 | . . . . . . 1 1 . . . . . . . . . . . . . . . . . . . . . . . . . . . Active Scanning Responses . | . . . . . . . . . . . . . . . . . . . . . . . . . . . . . . . . . . . Cargo Convoy Interrupts 1 | . . . . . . . . . . . . . . . 1 . . . . . . . . . . . . . . . . . . . Stealth | -11 -10 -10 -10 -9 -8 -7 -6 -6 -6 -6 -6 -6 -6 -5 -5 -5 -5 -5 -5 -4 -4 -4 -4 -4 -4 -3 -3 -3 -3 -2 -2 -2 -1 -1 --------- Run | Yrd Mat Min Exi Min Mat Fac Fac Was Fac Low Low Zio Dee Pro Fac Ext Cet Arc Hub Fac Was Fac Upp Upp Zhi Pro Res Arm Lab Res Tes Sec Acc Com Distress Signals 23 | . 1 . . . 2 . . . . . . . . . 2 2 2 . . . . 1 . . . . 2 . . 4 . 2 . 5 Communications Jammed 86 | . . . . . . . . . . . . . . . . . . . . . . . . . . . . . . 26 6 4 9 41 Distress Signals 86 | . . . . . . . . . . . . . . . . . . . . . . . . . . . . . . 26 6 4 9 41 Times Spotted 567 | . 26 3 . . 15 26 21 6 20 4 2 . 45 14 56 13 10 14 24 2 6 22 . 1 . 2 17 4 . 48 20 63 7 76 Peak Tracking Total 37 | . 5 1 . . 5 4 4 2 4 2 1 . 37 5 12 5 5 2 6 1 3 6 . 1 . 1 5 2 . 7 3 10 3 10 Tactical Retreats 17 | . 1 . . . 3 1 . . 1 . . . 2 . 3 . . . 1 . . 1 . . . . . . . 1 1 1 . 1 Traps | -11 -10 -10 -10 -9 -8 -7 -6 -6 -6 -6 -6 -6 -6 -5 -5 -5 -5 -5 -5 -4 -4 -4 -4 -4 -4 -3 -3 -3 -3 -2 -2 -2 -1 -1 ------- Run | Yrd Mat Min Exi Min Mat Fac Fac Was Fac Low Low Zio Dee Pro Fac Ext Cet Arc Hub Fac Was Fac Upp Upp Zhi Pro Res Arm Lab Res Tes Sec Acc Com Traps Triggered 9 | . . . . . . 1 1 . . . . . . . . 3 . . . 1 . . . . . . . . . . 1 2 . . Indirectly . | . . . . . . . . . . . . . . . . . . . . . . . . . . . . . . . . . . . Trap Hack Attempts . | . . . . . . . . . . . . . . . . . . . . . . . . . . . . . . . . . . . Triggered . | . . . . . . . . . . . . . . . . . . . . . . . . . . . . . . . . . . . Disarmed . | . . . . . . . . . . . . . . . . . . . . . . . . . . . . . . . . . . . Reprogrammed . | . . . . . . . . . . . . . . . . . . . . . . . . . . . . . . . . . . . Reused . | . . . . . . . . . . . . . . . . . . . . . . . . . . . . . . . . . . . Traps Extracted . | . . . . . . . . . . . . . . . . . . . . . . . . . . . . . . . . . . . Installed . | . . . . . . . . . . . . . . . . . . . . . . . . . . . . . . . . . . . Triggered . | . . . . . . . . . . . . . . . . . . . . . . . . . . . . . . . . . . . Machines | -11 -10 -10 -10 -9 -8 -7 -6 -6 -6 -6 -6 -6 -6 -5 -5 -5 -5 -5 -5 -4 -4 -4 -4 -4 -4 -3 -3 -3 -3 -2 -2 -2 -1 -1 ---------- Run | Yrd Mat Min Exi Min Mat Fac Fac Was Fac Low Low Zio Dee Pro Fac Ext Cet Arc Hub Fac Was Fac Upp Upp Zhi Pro Res Arm Lab Res Tes Sec Acc Com Machines Disabled 62 | . 3 . . . 1 . 1 . 4 . . 3 2 . 4 7 . 2 1 . . 4 . . . . . 1 2 1 6 16 1 3 Max in Single Turn 2 | . 2 . . . 1 . 1 . 1 . . 1 1 . 1 1 . 1 1 . . 2 . . . . . 1 1 1 1 1 1 1 Garrison Access 2 | . . . . . . . . . 1 . . . . . . . . . 1 . . . . . . . . . . . . . . . Network Hub 1 | . . . . . . . . . . . . . . . . . . . 1 . . . . . . . . . . . . . . . Machines Repaired . | . . . . . . . . . . . . . . . . . . . . . . . . . . . . . . . . . . . Machines Dismantled . | . . . . . . . . . . . . . . . . . . . . . . . . . . . . . . . . . . . Machines Sabotaged 1 | . . . . . . . . . . . . . . . . . . . 1 . . . . . . . . . . . . . . . Overloaded Fab Kills . | . . . . . . . . . . . . . . . . . . . . . . . . . . . . . . . . . . . Hacking | -11 -10 -10 -10 -9 -8 -7 -6 -6 -6 -6 -6 -6 -6 -5 -5 -5 -5 -5 -5 -4 -4 -4 -4 -4 -4 -3 -3 -3 -3 -2 -2 -2 -1 -1 --------- Run | Yrd Mat Min Exi Min Mat Fac Fac Was Fac Low Low Zio Dee Pro Fac Ext Cet Arc Hub Fac Was Fac Upp Upp Zhi Pro Res Arm Lab Res Tes Sec Acc Com Machines Accessed 73 | . 3 . 2 . 6 3 2 . 8 2 . . . . 3 5 . . 3 . . 1 2 1 4 . 4 1 . 2 4 8 6 3 Terminals 39 | . 3 . . . 3 2 1 . 3 . . . . . 2 4 . . 2 . . . . 1 . . 1 1 . 2 1 6 5 2 Fabricators 3 | . . . . . . . 1 . 1 . . . . . 1 . . . . . . . . . . . . . . . . . . . Repair Stations 6 | . . . . . 1 . . . 1 . . . . . . 1 . . . . . 1 . . . . . . . . 1 . . 1 Recycling Units 1 | . . . . . . . . . 1 . . . . . . . . . . . . . . . . . . . . . . . . . Scanalyzers 10 | . . . . . 2 . . . 1 . . . . . . . . . . . . . . . . . 2 . . . 2 2 1 . Garrison Access 4 | . . . . . . 1 . . 1 . . . . . . . . . 1 . . . . . . . 1 . . . . . . . Total Hacks 175 | . 7 . 2 . 12 4 4 . 16 8 . . . . 5 12 . . 8 . . 2 4 5 17 . 8 2 . 6 10 22 14 7 Successful 95 | . . . 2 . 8 . 2 . 7 8 . . . . 3 4 . . 3 . . 2 4 5 17 . 1 . . 3 8 9 7 2 Failed 79 | . 7 . . . 4 4 2 . 8 . . . . . 2 8 . . 5 . . . . . . . 7 2 . 3 2 13 7 5 Catastrophic 27 | . 2 . . . 2 2 1 . 2 . . . . . . 2 . . 1 . . . . . . . 3 2 . 3 1 2 1 3 Database Lockouts 1 | . . . . . . . . . 1 . . . . . . . . . . . . . . . . . . . . . . . . . Manual 34 | . 5 . 1 . 3 1 1 . 6 . . . . . 1 . 1 . 6 . . . . . . . . . . 2 . 5 2 . Terminals 83 | . 7 . . . 5 2 1 . 4 . . . . . 3 10 . . 6 . . . . 5 . . 1 2 . 6 2 16 10 3 Fabricators 9 | . . . . . . . 3 . 4 . . . . . 2 . . . . . . . . . . . . . . . . . . . Repair Stations 14 | . . . . . 2 . . . 2 . . . . . . 2 . . . . . 2 . . . . . . . . 2 . . 4 Recycling Units 1 | . . . . . . . . . 1 . . . . . . . . . . . . . . . . . . . . . . . . . Scanalyzers 28 | . . . . . 5 . . . 2 . . . . . . . . . . . . . . . . . 5 . . . 6 6 4 . Garrison Access 9 | . . . . . . 2 . . 3 . . . . . . . . . 2 . . . . . . . 2 . . . . . . . Terminal Hacks 61 | . . . 2 . 3 . . . . 8 . . . . 2 3 . . 1 . . . 4 5 17 . . . . 3 1 6 6 . Record 24 | . . . 1 . . . . . . 7 . . . . . 1 . . . . . . 3 5 5 . . . . 1 1 . . . Part Schematic 5 | . . . . . 1 . . . . . . . . . . . . . . . . . . . 4 . . . . . . . . . Robot Analysis 4 | . . . . . . . . . . . . . . . . . . . . . . . . . 4 . . . . . . . . . Prototype ID Bank 4 | . . . . . . . . . . . . . . . . . . . . . . . . . 4 . . . . . . . . . Open Door 10 | . . . . . . . . . . 1 . . . . 1 1 . . . . . . 1 . . . . . . . . 3 3 . Level Access Points 1 | . . . . . . . . . . . . . . . . . . . 1 . . . . . . . . . . . . . . . Branch Access Points 3 | . . . . . . . . . . . . . . . 1 . . . . . . . . . . . . . . 1 . . 1 . Terminal Index 1 | . . . . . . . . . . . . . . . . . . . . . . . . . . . . . . . . 1 . . Alert Level 1 | . . . . . . . . . . . . . . . . . . . . . . . . . . . . . . . . 1 . . Unreport Threat 2 | . . . . . . . . . . . . . . . . . . . . . . . . . . . . . . 1 . 1 . . Locate Traps 1 | . . . . . . . . . . . . . . . . . . . . . . . . . . . . . . . . . 1 . Hauler Manifests 1 | . . . . . 1 . . . . . . . . . . . . . . . . . . . . . . . . . . . . . Registered Prototypes 1 | . . . . . . . . . . . . . . . . . . . . . . . . . . . . . . . . . 1 . Zone Layout 2 | . . . . . 1 . . . . . . . . . . 1 . . . . . . . . . . . . . . . . . . Proto ID Catalog 1 | . . . 1 . . . . . . . . . . . . . . . . . . . . . . . . . . . . . . . Fabricator Hacks 3 | . . . . . . . 2 . 1 . . . . . . . . . . . . . . . . . . . . . . . . . Network Status 1 | . . . . . . . . . 1 . . . . . . . . . . . . . . . . . . . . . . . . . Load Schematic 1 | . . . . . . . 1 . . . . . . . . . . . . . . . . . . . . . . . . . . . Build 1 | . . . . . . . 1 . . . . . . . . . . . . . . . . . . . . . . . . . . . Repair Station Hacks 10 | . . . . . 1 . . . 2 . . . . . . 1 . . . . . 2 . . . . . . . . 2 . . 2 Scan Component 6 | . . . . . 1 . . . 1 . . . . . . 1 . . . . . 1 . . . . . . . . 1 . . 1 Repair 4 | . . . . . . . . . 1 . . . . . . . . . . . . 1 . . . . . . . . 1 . . 1 Recycling Unit Hacks 1 | . . . . . . . . . 1 . . . . . . . . . . . . . . . . . . . . . . . . . Retrieve Components 1 | . . . . . . . . . 1 . . . . . . . . . . . . . . . . . . . . . . . . . Scanalyzer 14 | . . . . . 4 . . . 1 . . . . . . . . . . . . . . . . . 1 . . . 5 2 1 . Insert Component 3 | . . . . . . . . . . . . . . . . . . . . . . . . . . . . . . . . 2 1 . Retrieve Study 11 | . . . . . 4 . . . 1 . . . . . . . . . . . . . . . . . 1 . . . 5 . . . Garrison Access Hacks 2 | . . . . . . . . . 1 . . . . . . . . . 1 . . . . . . . . . . . . . . . Seal Access 2 | . . . . . . . . . 1 . . . . . . . . . 1 . . . . . . . . . . . . . . . Unauthorized Hacks 4 | . . . . . . . . . 1 . . . . . 1 . . . 1 . . . . . . . . . . . . 1 . . Terminals 2 | . . . . . . . . . . . . . . . . . . . 1 . . . . . . . . . . . . 1 . . Botnet 1 | . . . . . . . . . . . . . . . . . . . . . . . . . . . . . . . . 1 . . Sabotage 1 | . . . . . . . . . . . . . . . . . . . 1 . . . . . . . . . . . . . . . Fabricators 2 | . . . . . . . . . 1 . . . . . 1 . . . . . . . . . . . . . . . . . . . Liberate 2 | . . . . . . . . . 1 . . . . . 1 . . . . . . . . . . . . . . . . . . . Repair Stations . | . . . . . . . . . . . . . . . . . . . . . . . . . . . . . . . . . . . Recycling Units . | . . . . . . . . . . . . . . . . . . . . . . . . . . . . . . . . . . . Scanalyzers . | . . . . . . . . . . . . . . . . . . . . . . . . . . . . . . . . . . . Garrison Access . | . . . . . . . . . . . . . . . . . . . . . . . . . . . . . . . . . . . Data Cores Recovered 3 | . . . . . . . . . . . . . . . . 1 . . . . . . . . . . . . . 2 . . . . Used 1 | . . . . . . . . . . . . . . . . . . . . . . . . . . . . . . 1 . . . . Hacking Detections 48 | . 3 . . . 4 3 2 . 7 . . . . . 2 4 1 . 2 . . 1 . . . . 4 1 . 2 2 5 3 2 Full Trace Events 3 | . 1 . . . . . 1 . . . . . . . . . . . 1 . . . . . . . . . . . . . . . Feedback Events . | . . . . . . . . . . . . . . . . . . . . . . . . . . . . . . . . . . . Feedback Blocked . | . . . . . . . . . . . . . . . . . . . . . . . . . . . . . . . . . . . Robot Schematics Acquired 2 | . . . . . . . . . . . . . . . . . . . . . . . . . . . . . . . 2 . . . Robots Built . | . . . . . . . . . . . . . . . . . . . . . . . . . . . . . . . . . . . Authchips . | . . . . . . . . . . . . . . . . . . . . . . . . . . . . . . . . . . . Time . | . . . . . . . . . . . . . . . . . . . . . . . . . . . . . . . . . . . Total Robot Build Rating . | . . . . . . . . . . . . . . . . . . . . . . . . . . . . . . . . . . . Part Schematics Acquired 8 | . . . . . 1 . . . . . . . . . . . . . . . . . . . 4 . . . . . 3 . . . Parts Built 2 | . . . . . . . 2 . . . . . . . . . . . . . . . . . . . . . . . . . . . Authchips . | . . . . . . . . . . . . . . . . . . . . . . . . . . . . . . . . . . . Time 20 | . . . . . . . 20 . . . . . . . . . . . . . . . . . . . . . . . . . . . Total Part Build Rating 4 | . . . . . . . 4 . . . . . . . . . . . . . . . . . . . . . . . . . . . Part Studies Acquired 11 | . . . . . 4 . . . 1 . . . . . . . . . . . . . . . . . 1 . . . 5 . . . Parts Repaired 4 | . . . . . . . . . 1 . . . . . . . . . . . . 1 . . . . . . . . 1 . . 1 Time 172 | . . . . . . . . . 38 . . . . . . . . . . . . 54 . . . . . . . . 44 . . 36 Parts Recycled . | . . . . . . . . . . . . . . . . . . . . . . . . . . . . . . . . . . . Recycled Matter . | . . . . . . . . . . . . . . . . . . . . . . . . . . . . . . . . . . . Retrieved Matter . | . . . . . . . . . . . . . . . . . . . . . . . . . . . . . . . . . . . Retrieved Components 1 | . . . . . . . . . 1 . . . . . . . . . . . . . . . . . . . . . . . . . Parts Scanalyzed . | . . . . . . . . . . . . . . . . . . . . . . . . . . . . . . . . . . . Part Schematics Acquired . | . . . . . . . . . . . . . . . . . . . . . . . . . . . . . . . . . . . Parts Damaged . | . . . . . . . . . . . . . . . . . . . . . . . . . . . . . . . . . . . Bothacking | -11 -10 -10 -10 -9 -8 -7 -6 -6 -6 -6 -6 -6 -6 -5 -5 -5 -5 -5 -5 -4 -4 -4 -4 -4 -4 -3 -3 -3 -3 -2 -2 -2 -1 -1 ------------ Run | Yrd Mat Min Exi Min Mat Fac Fac Was Fac Low Low Zio Dee Pro Fac Ext Cet Arc Hub Fac Was Fac Upp Upp Zhi Pro Res Arm Lab Res Tes Sec Acc Com Used RIF Installer . | . . . . . . . . . . . . . . . . . . . . . . . . . . . . . . . . . . . Robots Hacked . | . . . . . . . . . . . . . . . . . . . . . . . . . . . . . . . . . . . Non-combat . | . . . . . . . . . . . . . . . . . . . . . . . . . . . . . . . . . . . Combat . | . . . . . . . . . . . . . . . . . . . . . . . . . . . . . . . . . . . Robot Hacks Applied . | . . . . . . . . . . . . . . . . . . . . . . . . . . . . . . . . . . . Relay Couplers Released 6 | . . . . . . 4 . . . . . . . . . . . . 2 . . . . . . . . . . . . . . . Machine Destruction 2 | . . . . . . . . . . . . . . . . . . . 2 . . . . . . . . . . . . . . . Programmers 4 | . . . . . . 4 . . . . . . . . . . . . . . . . . . . . . . . . . . . . Fabnet Peak Effective % . | . . . . . . . . . . . . . . . . . . . . . . . . . . . . . . . . . . . Robots Rewired 6 | . . . . . . . . . . . . . . . . 3 . . . . . . . . . . . 3 . . . . . . Allies Hacked . | . . . . . . . . . . . . . . . . . . . . . . . . . . . . . . . . . . . Hacks Repelled . | . . . . . . . . . . . . . . . . . . . . . . . . . . . . . . . . . . . Allies | -11 -10 -10 -10 -9 -8 -7 -6 -6 -6 -6 -6 -6 -6 -5 -5 -5 -5 -5 -5 -4 -4 -4 -4 -4 -4 -3 -3 -3 -3 -2 -2 -2 -1 -1 -------- Run | Yrd Mat Min Exi Min Mat Fac Fac Was Fac Low Low Zio Dee Pro Fac Ext Cet Arc Hub Fac Was Fac Upp Upp Zhi Pro Res Arm Lab Res Tes Sec Acc Com Total Allies 22 | . . 2 . . . . . . . . . . . . 2 10 5 . . . . . . . . . . 3 . . . . . . Largest Group 9 | . . 2 1 . . . . . . . . . . . 2 7 9 5 4 . . . . . . . . 3 . . . . . . Highest-Rated Group 729 | . . 42 31 . . . . . . . . . . . 98 349 729 402 363 . . . . . . . . 192 . . . . . . Highest-Rated Ally 159 | . . 31 31 . . . . . . . . . . . 49 159 159 96 96 . . . . . . . . 64 . . . . . . Total Orders 4 | . . . . . 1 2 1 . . . . . . . . . . . . . . . . . . . . . . . . . . . EXPLORE 3 | . . . . . 1 1 1 . . . . . . . . . . . . . . . . . . . . . . . . . . . RETURN 1 | . . . . . . 1 . . . . . . . . . . . . . . . . . . . . . . . . . . . . Ally Attacks 136 | . . 11 . . . . . . . . . . . . . 33 43 15 34 . . . . . . . . . . . . . . . Total Damage 3406 | . . 238 . . . . . . . . . . . . . 572 1010 373 1213 . . . . . . . . . . . . . . . Kills 25 | . . 2 . . . . . . . . . . . . . 5 6 4 8 . . . . . . . . . . . . . . . Allies Corrupted . | . . . . . . . . . . . . . . . . . . . . . . . . . . . . . . . . . . . Allies Melted 1 | . . . . . . . . . . . . . . . . . . . . . . . . . . . . . . . . . . 1 Intel | -11 -10 -10 -10 -9 -8 -7 -6 -6 -6 -6 -6 -6 -6 -5 -5 -5 -5 -5 -5 -4 -4 -4 -4 -4 -4 -3 -3 -3 -3 -2 -2 -2 -1 -1 ------- Run | Yrd Mat Min Exi Min Mat Fac Fac Was Fac Low Low Zio Dee Pro Fac Ext Cet Arc Hub Fac Was Fac Upp Upp Zhi Pro Res Arm Lab Res Tes Sec Acc Com Active Infowar (turns) 20969 | . 947 453 506 254 910 1207 160 . 147 432 307 1298 1563 . . . . . . 237 129 805 495 751 333 485 765 415 172 1752 1093 2161 631 2561 Optics 7390 | . . . . . . . . . . 291 307 1298 1563 . . . . . . . . . . . . . . . . . . 739 631 2561 Sensors 12065 | . . . . . 680 1207 160 . 147 432 307 1298 200 . . . . . . . . 1 493 746 313 485 722 347 172 1223 611 1313 629 579 Terrain 6503 | . . . . . . . . . . . . . . . . . . . . . . 695 495 751 333 480 333 289 81 1026 888 1132 . . Structural 357 | . . . . . 357 . . . . . . . . . . . . . . . . . . . . . . . . . . . . . Seismic 2504 | . 947 453 506 254 344 . . . . . . . . . . . . . . . . . . . . . . . . . . . . . Triangulation 355 | . . . . . . . . . . . . . . . . . . . . . . . . . . . . . . . . . . 355 Jamming 9365 | . . . . . . . . . . . . . . . . . . . . 237 129 374 495 751 333 485 756 414 . 1747 943 1159 631 911 Robot Analysis Total 4 | . . . . . . . . . . . . . . . . . . . . . . . . . 4 . . . . . . . . . Derelict Logs Recovered 9 | . . . . 1 . . . . . . 1 2 . 2 . . . . . . . . 2 1 . . . . . . . . . . Drone Launches 3 | . . . . . 1 1 1 . . . . . . . . . . . . . . . . . . . . . . . . . . . Drone Recoveries 2 | . . . . . 1 1 . . . . . . . . . . . . . . . . . . . . . . . . . . . . Exploration | -11 -10 -10 -10 -9 -8 -7 -6 -6 -6 -6 -6 -6 -6 -5 -5 -5 -5 -5 -5 -4 -4 -4 -4 -4 -4 -3 -3 -3 -3 -2 -2 -2 -1 -1 ------------- Run | Yrd Mat Min Exi Min Mat Fac Fac Was Fac Low Low Zio Dee Pro Fac Ext Cet Arc Hub Fac Was Fac Upp Upp Zhi Pro Res Arm Lab Res Tes Sec Acc Com Turns Passed 34696 | 10 1025 453 506 254 910 1207 853 232 1608 432 307 1298 2302 1161 2468 1515 664 1171 757 237 745 1017 495 751 333 485 765 415 1455 1752 1310 2611 631 2561 Spaces Moved 14903 | 9 560 266 315 157 467 643 371 92 752 299 209 980 949 574 967 721 193 201 288 108 244 366 232 338 175 220 317 90 291 609 582 1182 340 796 Core 223 | . . . . . . . . . . . . . . . . . . . . . . . . . . . . . 223 . . . . . Treads 2168 | . 359 266 315 157 467 163 180 92 169 . . . . . . . . . . . . . . . . . . . . . . . . . Legs 8837 | 9 201 . . . . . . . . . . . 300 574 967 721 193 201 288 108 244 366 232 338 175 220 317 90 68 609 582 1086 306 642 Wheels 3391 | . . . . . . 480 191 . 583 299 209 980 649 . . . . . . . . . . . . . . . . . . . . . Hover . | . . . . . . . . . . . . . . . . . . . . . . . . . . . . . . . . . . . Flight . | . . . . . . . . . . . . . . . . . . . . . . . . . . . . . . . . . . . Fastest Speed 50 | 120 120 160 160 160 145 120 135 185 115 130 130 130 115 180 150 180 180 180 180 210 210 210 210 210 180 210 178 227 50 177 175 175 180 108 Average Speed 169 | 120 158 160 160 160 147 143 171 185 168 130 130 130 145 180 179 180 180 180 206 210 231 217 210 210 181 210 201 227 85 181 175 180 180 155 Slowest Speed 265 | 120 190 160 160 160 160 192 185 225 265 130 130 130 180 180 180 180 180 180 210 210 240 240 210 210 210 210 227 227 227 232 177 235 180 180 Overloaded Moves . | . . . . . . . . . . . . . . . . . . . . . . . . . . . . . . . . . . . Propulsion Burnouts . | . . . . . . . . . . . . . . . . . . . . . . . . . . . . . . . . . . . Robots Hopped . | . . . . . . . . . . . . . . . . . . . . . . . . . . . . . . . . . . . Potential Cave-ins 40 | . . . . . . . . . . . 9 . . . . . . . . . . . . . . . 2 . . . 6 10 . 13 Cave-ins Triggered 2 | . . . . . . . . . . . . . . . . . . . . . . . . . . . . . . . . 1 . 1 Teleports 3 | . . . . . . . . . . . . . . . . . . . . . . . . . . . . 1 . . . 2 . . Microwarps 27 | . . . . . . . . . . . . . . . . . . . . . . . . . . . . . . . . 7 6 14 Exploration Rate (%) 47 | 2 91 47 70 37 35 24 13 89 22 50 46 87 85 73 22 85 56 85 15 5 89 13 41 64 61 41 16 7 87 21 62 59 18 28 Regions Visited 34 Branch Regions 21 Pre-discovered Areas 8 | . . . 1 . . . . . . . . 2 . 1 . . . . . . . . . 1 3 . . . . . . . . . Known Exits Taken 21 | . . . . . 1 1 . . 1 1 1 1 . 1 1 . . . 1 . . 1 1 1 1 1 1 1 1 1 1 1 1 . Unknown Exits Taken 9 | 1 1 1 1 1 . . . . . . . . 1 . . 1 1 1 . . . . . . . . . . . . . . . . Scrap Searched 15 | . . 1 . 1 . . . . . . 1 5 . 4 . . . . . . . . . 2 . 1 . . . . . . . . Spaces Dug 313 | . 17 12 . . . 25 . 24 13 . 8 . 6 . 10 . . . 3 2 5 8 1 3 . 2 18 1 15 31 16 44 13 36 Terrain Destroyed 1230 | . 94 12 . . 18 25 18 297 19 . 13 . 50 16 128 11 6 5 19 2 27 40 4 11 . 6 24 2 17 64 37 115 18 132 Melee 3 | . . . . . . . . . 3 . . . . . . . . . . . . . . . . . . . . . . . . . Projectile 521 | . . . . . . . 6 . 6 . 11 . 5 7 46 11 6 5 19 2 27 39 4 11 . 6 18 2 17 64 37 87 18 67 AOE 672 | . 94 12 . . 18 25 12 297 10 . . . 41 9 82 . . . . . . 1 . . . . 6 . . . . 11 . 54 Terrain Rammed . | . . . . . . . . . . . . . . . . . . . . . . . . . . . . . . . . . . . Walls Destroyed . | . . . . . . . . . . . . . . . . . . . . . . . . . . . . . . . . . . . Machines Disabled . | . . . . . . . . . . . . . . . . . . . . . . . . . . . . . . . . . . . Actions | -11 -10 -10 -10 -9 -8 -7 -6 -6 -6 -6 -6 -6 -6 -5 -5 -5 -5 -5 -5 -4 -4 -4 -4 -4 -4 -3 -3 -3 -3 -2 -2 -2 -1 -1 --------- Run | Yrd Mat Min Exi Min Mat Fac Fac Was Fac Low Low Zio Dee Pro Fac Ext Cet Arc Hub Fac Was Fac Upp Upp Zhi Pro Res Arm Lab Res Tes Sec Acc Com Total 22409 | 8 631 284 318 159 620 796 492 115 958 328 227 1005 1819 650 1510 890 464 978 371 118 362 507 236 369 193 231 406 288 1487 1005 777 1507 355 1945 Wait 5028 | . . 1 . . 51 41 40 2 51 4 . . 762 21 377 56 224 701 16 . 74 55 . 18 . . 23 145 1086 168 100 140 2 870 Move 14614 | 8 560 265 314 156 466 642 371 91 751 298 208 979 948 573 966 720 192 200 287 108 243 365 231 337 174 219 316 89 290 608 581 1092 311 655 Hop . | . . . . . . . . . . . . . . . . . . . . . . . . . . . . . . . . . . . Pick Up 281 | . 14 3 2 . 13 12 4 . 12 6 2 5 19 9 13 9 8 19 6 1 1 10 . 1 2 1 4 . 23 6 4 21 5 46 Fast Attach 168 | . 1 1 . 1 11 10 12 . 22 2 . 6 4 2 4 4 2 2 5 1 3 3 . 2 6 2 9 . 8 4 3 17 . 21 Attach 107 | . 2 . . . 4 5 2 2 4 1 . 2 6 . 3 . . 2 . 3 . 9 . . 2 . 1 . 9 2 2 15 4 27 Detach 141 | . . . . . 1 1 1 . 2 . . . 9 5 15 4 3 5 2 1 1 2 . . 4 . 5 . 15 4 3 17 2 39 Swap 277 | . 10 2 . . 8 7 7 1 18 3 3 2 10 1 7 6 4 1 9 1 . 11 2 . . . 10 5 . 55 21 47 3 23 Drop 356 | . 5 4 2 1 23 18 12 . 29 5 1 11 17 3 11 14 7 25 5 1 6 8 . 3 5 3 12 . 31 8 7 26 2 51 Fire 1312 | . 36 5 . . 42 55 43 19 65 9 13 . 44 36 112 31 24 23 39 2 34 42 3 8 . 6 26 6 25 141 54 132 26 211 Melee 7 | . . . . . . 3 . . 4 . . . . . . . . . . . . . . . . . . . . . . . . . Ram . | . . . . . . . . . . . . . . . . . . . . . . . . . . . . . . . . . . . Kick 23 | . 3 . . . . . . . . . . . . . 2 2 . . 2 . . 2 . . . . . . . 9 2 . . 1 Crush 7 | . . 3 . 1 1 2 . . . . . . . . . . . . . . . . . . . . . . . . . . . . Escape Stasis 16 | . . . . . . . . . . . . . . . . 15 . . . . . . . . . . . . . . . . . 1 Rewire 72 | . . . . . . . . . . . . . . . . 29 . . . . . . . . . . . 43 . . . . . . Trap . | . . . . . . . . . . . . . . . . . . . . . . . . . . . . . . . . . . . Miscellaneous . | . . . . . . . . . . . . . . . . . . . . . . . . . . . . . . . . . . . Route ------- -11/Scrapyard -10/Materials (discovered 4 exits: [*Mat x3] / [*Min]) -10/Mines (discovered 2 exits: [*Mat] / *Exi) -10/Exiles -9/Mines -8/Materials -7/Factory (discovered 2 exits: *Fac / *Sto) -6/Factory -6/Waste -6/Factory -6/Lower Caves -6/Lower Caves -6/Zion (discovered 2 exits: *Dee / [*Pro]) -6/Deep Caves -5/Proximity Caves -5/Factory (discovered 5 exits: *Fac / Upp x2 / *Ext x2) -5/Extension (discovered 2 exits: *Fac / *Cet) -5/Cetus (discovered 2 exits: *Fac / [*Arc]) -5/Archives (discovered 3 exits: *Fac / *Hub x2) -5/Hub_04(d) (discovered 4 exits: *Fac x4) -4/Factory -4/Waste -4/Factory -4/Upper Caves -4/Upper Caves (discovered 2 exits: *Res / *Zhi) -4/Zhirov -3/Proximity Caves -3/Research (discovered 4 exits: Res / *Arm / Qua x2) -3/Armory -3/Lab -2/Research (discovered 3 exits: *Acc / *Tes x2) -2/Testing (discovered 3 exits: *Acc / *Sec / [*Frg]) -2/Section 7 -1/Access -1/Command (discovered 2 exits: Sur x2) By MAIN.C's Side History --------- Turn | Location | Event 1 | -11/Scrapyard | Discovered new exit (range 3) 11 | -11/Scrapyard | Entered Materials 12 | -10/Materials | Met a group of wandering Federalists 218 | -10/Materials | Discovered new exit (range 3) 317 | -10/Materials | Build established: Mutant 510 | -10/Materials | Discovered new exit (range 10) 760 | -10/Materials | Discovered new exit (range 16) 1000 | -10/Materials | Discovered new exit (range 16) 1036 | -10/Materials | Entered Mines 1136 | -10/Mines | Discovered new exit (range 13) 1481 | -10/Mines | Deemed a non-threat by the Exiles lab entrance 1482 | -10/Mines | Discovered new exit (range 5) 1489 | -10/Mines | Entered Exiles 1489 | -10/Exiles | Accompanied by 1 ally 1519 | -10/Exiles | Led the pair of lost Derelicts to a safe place 1528 | -10/Exiles | Met 8R-AWN 1552 | -10/Exiles | Met EX-HEX 1617 | -10/Exiles | Met EX-DEC 1625 | -10/Exiles | Learned location of Zion (-6) 1659 | -10/Exiles | Met EX-BIN 1677 | -10/Exiles | Aligned with FarCom system 1678 | -10/Exiles | Given EX-Vault access code 1715 | -10/Exiles | Opened EX-Vault 1728 | -10/Exiles | Found Supersonic Drone Bay 1732 | -10/Exiles | Found 0b10 Alert Chip 1763 | -10/Exiles | Warned to stay clear of 0b10 Research branches 1977 | -10/Exiles | Discovered new exit (range 11) 1995 | -10/Exiles | Stole two prototypes: 0b10 Alert Chip, Supersonic Drone Bay 1995 | -10/Exiles | Entered Mines 2199 | -9/Mines | Learned Materials emergency access door positions 2225 | -9/Mines | Discovered new exit (range 9) 2249 | -9/Mines | Entered Materials 2249 | -8/Materials | Evolved 4 slots: Utility x4 2862 | -8/Materials | Discovered new exit (range 12) 2892 | -8/Materials | Build established: Scavenger-Skirmisher 3158 | -8/Materials | Identified exit to Factory 3159 | -8/Materials | Entered Factory 3159 | -7/Factory | Evolved 2 slots: Utility x2 3161 | -7/Factory | FarCom data flow suspended 3224 | -7/Factory | Discovered new exit (range 61) 3462 | -7/Factory | Found Prototype Launcher 3462 | -7/Factory | Identified Rocket Array 3472 | -7/Factory | Found Rocket Array 3553 | -7/Factory | Build established: Mutant 3688 | -7/Factory | Identified exit to Storage 3851 | -7/Factory | Garrison activated, responded to threat 3998 | -7/Factory | Lost 3 parts (1p1n1w) 4323 | -7/Factory | Discovered new exit (range 13) 4363 | -7/Factory | Identified exit to Factory 4366 | -7/Factory | Entered another Factory area 4366 | -6/Factory | Evolved 2 slots: Power x1, Utility x1 4749 | -6/Factory | Build established: Hacker-Mutant 4939 | -6/Factory | Fabricated Plasma Cutter (x2) 5152 | -6/Factory | Discovered new exit (range 15) 5217 | -6/Factory | Identified exit to Factory 5219 | -6/Factory | Sucked down chute 5219 | -6/Factory | Entered Waste 5234 | -6/Waste | EMP discharged 5256 | -6/Waste | Spotted C-40 Crusher 5264 | -6/Waste | Destroyed C-40 Crusher 5273 | -6/Waste | Spotted C-40 Crusher 5292 | -6/Waste | Crushed by Compactor (1 part destroyed, 1 dropped) 5293 | -6/Waste | Destroyed C-40 Crusher 5317 | -6/Waste | Spotted C-40 Crusher 5321 | -6/Waste | Spotted C-40 Crusher 5323 | -6/Waste | Lost 3 parts (1p1n1u) 5331 | -6/Waste | Destroyed C-40 Crusher 5334 | -6/Waste | EMP discharged 5334 | -6/Waste | System corruption reached 10% 5334 | -6/Waste | Destroyed C-40 Crusher 5344 | -6/Waste | Spotted C-40 Crusher 5355 | -6/Waste | Destroyed C-40 Crusher 5386 | -6/Waste | Spotted C-40 Crusher 5398 | -6/Waste | Destroyed C-40 Crusher 5429 | -6/Waste | Discovered new exit (range 12) 5434 | -6/Waste | EMP discharged 5449 | -6/Waste | Identified exit to Factory 5451 | -6/Waste | Entered Factory 5540 | -6/Factory | Repaired Adv. Treads+ 6567 | -6/Factory | Central database locked down 7054 | -6/Factory | Discovered new exit (range 5) 7058 | -6/Factory | Identified exit to Lower Caves 7059 | -6/Factory | Entered Lower Caves 7060 | -6/Lower Caves | Tesla Rifle stolen by Master Thief 7060 | -6/Lower Caves | Lgt. Fission Core stolen by Master Thief 7061 | -6/Lower Caves | Encountered a Master Thief 7061 | -6/Lower Caves | Encountered a Master Thief 7126 | -6/Lower Caves | Entered an active Warlord outpost 7161 | -6/Lower Caves | Learned Research stockpile data 7161 | -6/Lower Caves | Learned Factory security intel 7161 | -6/Lower Caves | Learned Factory garrison access intel 7181 | -6/Lower Caves | Destroyed OI-M3J(g) 7337 | -6/Lower Caves | Encountered a Warlord checkpoint 7402 | -6/Lower Caves | Discovered new exit (range 8) 7468 | -6/Lower Caves | Build established: Scavenger-Skirmisher 7489 | -6/Lower Caves | Identified exit to Lower Caves 7491 | -6/Lower Caves | Entered another Lower Caves area 7492 | -6/Lower Caves | EM Pulse Cannon stolen by Master Thief 7493 | -6/Lower Caves | Encountered a Master Thief 7562 | -6/Lower Caves | Encountered a Warlord checkpoint 7638 | -6/Lower Caves | Learned Factory terminal intel 7718 | -6/Lower Caves | Discovered new exit (range 3) 7722 | -6/Lower Caves | Identified exit to Zion 7765 | -6/Lower Caves | Found Prototype Special Weapon 7770 | -6/Lower Caves | Identified Mak. Laser Shovel 7798 | -6/Lower Caves | Entered Zion 7827 | -6/Zion | Learned Factory stockpile data 7859 | -6/Zion | System corruption cleaned by Quarantine Array 7988 | -6/Zion | Discovered new exit (range 7) 8239 | -6/Zion | Learned Factory garrison access intel 8410 | -6/Zion | Received a visual enhancement algorithm 8502 | -6/Zion | Learned Factory trap positions 8746 | -6/Zion | Met Imprinter 8809 | -6/Zion | Found Prototype Special Weapon 8809 | -6/Zion | Identified RU-N14's Throwing Claymores 8820 | -6/Zion | Found RU-N14's Throwing Claymores 8822 | -6/Zion | Found RU-N14's Throwing Claymores 8825 | -6/Zion | Found RU-N14's Throwing Claymores 9090 | -6/Zion | Discovered new exit (range 4) 9090 | -6/Zion | Saw the warning signs outside the Deep Caves entrance 9093 | -6/Zion | Identified exit to Deep Caves 9096 | -6/Zion | Entered Deep Caves 9251 | -6/Deep Caves | Build established: Skirmisher 9294 | -6/Deep Caves | Attacked by Z-Imprinter 9299 | -6/Deep Caves | Destroyed Z-Imprinter 9407 | -6/Deep Caves | Z-Facility disabled 9597 | -6/Deep Caves | Build established: Mutant 9738 | -6/Deep Caves | Found Surveybot 24 Chip 9743 | -6/Deep Caves | Found Surveybot 24 Scanner 9793 | -6/Deep Caves | Spotted AG-13914 9845 | -6/Deep Caves | Destroyed AG-13914 9928 | -6/Deep Caves | Spotted AG-97852 10031 | -6/Deep Caves | Core integrity fell below 50% 10073 | -6/Deep Caves | Destroyed AG-97852 10076 | -6/Deep Caves | Found GOLEM Unit 10476 | -6/Deep Caves | Build established: Golem 10804 | -6/Deep Caves | Triggered Deep Caves wall 10804 | -6/Deep Caves | Spotted AS-17338 10804 | -6/Deep Caves | Spotted AS-08064 10811 | -6/Deep Caves | Destroyed AS-17338 10817 | -6/Deep Caves | Destroyed AS-08064 10838 | -6/Deep Caves | Destroyed 37 combat bots 11021 | -6/Deep Caves | Exposed GOLEM chamber 11025 | -6/Deep Caves | Found GOLEM Unit 11030 | -6/Deep Caves | Found GOLEM Unit 11035 | -6/Deep Caves | Found GOLEM Unit 11040 | -6/Deep Caves | Found GOLEM Unit 11389 | -6/Deep Caves | Discovered new exit (range 6) 11398 | -6/Deep Caves | Entered Proximity Caves 11969 | -5/Proximity Caves | Learned location of Armory (-3) 12069 | -5/Proximity Caves | Spotted B-75 Beast 12139 | -5/Proximity Caves | Destroyed B-75 Beast 12175 | -5/Proximity Caves | Learned Factory security intel 12182 | -5/Proximity Caves | Found DCF Scrap (13 items) 12376 | -5/Proximity Caves | Attracted the attention of an 0b10 checkpoint 12378 | -5/Proximity Caves | Core integrity fell below 20% 12523 | -5/Proximity Caves | Discovered exit to Factory (range 11) 12559 | -5/Proximity Caves | Entered Factory 12559 | -5/Factory | Evolved 2 slots: Utility x2 12560 | -5/Factory | Loaded intel: 75 trap records 12563 | -5/Factory | Loaded intel: 28 terminal locations 12564 | -5/Factory | Loaded intel: 4 garrison access locations 13286 | -5/Factory | Spotted B-75 Beast 13323 | -5/Factory | Destroyed B-75 Beast 13457 | -5/Factory | Cargo convoy interrupted 13504 | -5/Factory | Garrison activated, responded to threat 13525 | -5/Factory | Destroyed 10 combat bots 13581 | -5/Factory | Lost 8 parts (1p6u1w) 13591 | -5/Factory | Discovered new exit (range 15) 14176 | -5/Factory | Identified exit to Upper Caves 14176 | -5/Factory | Identified exit to Extension 14323 | -5/Factory | System corruption reached 10% 14659 | -5/Factory | First assault squad dispatched 15027 | -5/Factory | Entered Extension 15602 | -5/Extension | Rescued a captive Derelict 15603 | -5/Extension | Rescued a captive Derelict 15629 | -5/Extension | Rescued a captive Derelict 15697 | -5/Extension | Rescued a captive Derelict 15931 | -5/Extension | Spotted B-75 Beast 15940 | -5/Extension | Allies destroyed B-75 Beast 15955 | -5/Extension | Spotted B-75 Beast 15968 | -5/Extension | Destroyed B-75 Beast 16007 | -5/Extension | Lost 3 allies 16049 | -5/Extension | Rescued A7 16114 | -5/Extension | Rescued a captive Derelict 16368 | -5/Extension | Rescued a captive Derelict 16498 | -5/Extension | Discovered new exit (range 10) 16500 | -5/Extension | Discovered new exit (range 6) 16542 | -5/Extension | Entered Cetus 16542 | -5/Cetus | Accompanied by 7 allies (A7) 16547 | -5/Cetus | Acquired a Cetus Manufacturing Module code from A7 16553 | -5/Cetus | Spotted Cetus Guard 16553 | -5/Cetus | Spotted Cetus Guard 16562 | -5/Cetus | Allies destroyed Cetus Guard 16566 | -5/Cetus | Spotted Cetus Guard 16568 | -5/Cetus | Spotted Cetus Guard 16571 | -5/Cetus | Allies destroyed Cetus Guard 16581 | -5/Cetus | Destroyed Cetus Guard 16609 | -5/Cetus | Lost 3 allies 16714 | -5/Cetus | Started Cetus Manufacturing Module 16739 | -5/Cetus | Manufactured an Enhanced Grunt 16764 | -5/Cetus | Manufactured an Enhanced Grunt 16789 | -5/Cetus | Manufactured an Enhanced Grunt 16814 | -5/Cetus | Manufactured an Enhanced Grunt 16839 | -5/Cetus | Manufactured an Enhanced Grunt 16875 | -5/Cetus | Discovered new exit (range 16) 16910 | -5/Cetus | Spotted Cetus Guard 16910 | -5/Cetus | Spotted Cetus Guard 16913 | -5/Cetus | Spotted Cetus Guard 16914 | -5/Cetus | Spotted Cetus Guard 16922 | -5/Cetus | Destroyed Cetus Guard 16930 | -5/Cetus | Allies destroyed Cetus Guard 16930 | -5/Cetus | Destroyed Cetus Guard 16931 | -5/Cetus | Allies destroyed Cetus Guard 16943 | -5/Cetus | Discovered new exit (range 16) 16954 | -5/Cetus | Met Revision 17 17024 | -5/Cetus | Found Prototype Device 17086 | -5/Cetus | Identified Exp. Thermal Shield 17095 | -5/Cetus | Build established: Commander-Golem 17142 | -5/Cetus | Murdered A7 17145 | -5/Cetus | Extracted ID and sensor layout for unrecognized location from A7's data core 17206 | -5/Cetus | Entered Archives 17206 | -5/Archives | Accompanied by 5 allies 17287 | -5/Archives | Discovered new exit (range 15) 17456 | -5/Archives | Discovered new exit (range 15) 17484 | -5/Archives | Discovered new exit (range 16) 18377 | -5/Archives | Entered Hub_04(d) 18377 | -5/Hub_04(d) | Accompanied by 4 allies 18540 | -5/Hub_04(d) | Discovered new exit (range 9) 18617 | -5/Hub_04(d) | Identified exit to Factory 18617 | -5/Hub_04(d) | Network Hub disabled 18620 | -5/Hub_04(d) | Spotted Lightning 18651 | -5/Hub_04(d) | Spotted Lightning 18652 | -5/Hub_04(d) | Spotted Lightning 18660 | -5/Hub_04(d) | Destroyed Lightning 18664 | -5/Hub_04(d) | Lost 3 allies 18680 | -5/Hub_04(d) | Destroyed Lightning 18697 | -5/Hub_04(d) | Found Prototype Device 18697 | -5/Hub_04(d) | Identified Exp. Phase Shifter 18724 | -5/Hub_04(d) | Destroyed Lightning 18732 | -5/Hub_04(d) | Found Prototype Device 18732 | -5/Hub_04(d) | Identified Exp. EM Shield 18735 | -5/Hub_04(d) | Found Prototype Processor 18735 | -5/Hub_04(d) | Identified Exp. Targeting Computer 18744 | -5/Hub_04(d) | Found Exp. Phase Shifter 19040 | -5/Hub_04(d) | Build established: Scavenger-Mutant 19134 | -5/Hub_04(d) | Entered Factory 19134 | -4/Factory | Evolved 2 slots: Utility x1, Weapon x1 19136 | -4/Factory | Loaded intel: 4 garrison access locations 19371 | -4/Factory | Sucked down chute 19371 | -4/Factory | Entered Waste 19386 | -4/Waste | EMP discharged 19398 | -4/Waste | Spotted C-40 Crusher 19431 | -4/Waste | Spotted C-40 Crusher 19459 | -4/Waste | Spotted C-40 Crusher 19472 | -4/Waste | Destroyed C-40 Crusher 19480 | -4/Waste | Destroyed C-40 Crusher 19486 | -4/Waste | EMP discharged 19486 | -4/Waste | System corruption reached 10% 19486 | -4/Waste | Destroyed C-40 Crusher 19502 | -4/Waste | Found Unknown Protection 19502 | -4/Waste | Identified Damper Plating 19579 | -4/Waste | Spotted C-40 Crusher 19586 | -4/Waste | EMP discharged 19686 | -4/Waste | EMP discharged 19694 | -4/Waste | Spotted C-40 Crusher 19704 | -4/Waste | Destroyed C-40 Crusher 19712 | -4/Waste | Spotted C-40 Crusher 19730 | -4/Waste | Crushed by Compactor (1 part destroyed) 19786 | -4/Waste | EMP discharged 19800 | -4/Waste | Build established: Tank 19801 | -4/Waste | Destroyed C-40 Crusher 19863 | -4/Waste | Destroyed C-40 Crusher 19886 | -4/Waste | EMP discharged 19986 | -4/Waste | EMP discharged 20086 | -4/Waste | EMP discharged 20092 | -4/Waste | Discovered new exit (range 11) 20116 | -4/Waste | Entered Factory 20423 | -4/Factory | Build established: Scavenger-Tank 20839 | -4/Factory | Repaired Centrium Medium Armor Plating 20977 | -4/Factory | Discovered new exit (range 23) 21133 | -4/Factory | Identified exit to Upper Caves 21133 | -4/Factory | Entered Upper Caves 21292 | -4/Upper Caves | Learned 4 Research zone layouts 21422 | -4/Upper Caves | Build established: Skirmisher 21506 | -4/Upper Caves | Discovered new exit (range 22) 21514 | -4/Upper Caves | Learned location of 1 exit from Upper Caves 21538 | -4/Upper Caves | Entered an active Warlord outpost 21552 | -4/Upper Caves | Learned 8 Research zone layouts 21552 | -4/Upper Caves | Learned Factory security intel 21552 | -4/Upper Caves | Learned Extension garrison access intel 21625 | -4/Upper Caves | Identified exit to Upper Caves 21628 | -4/Upper Caves | Entered another Upper Caves area 21628 | -4/Upper Caves | Discovered new exit (range 9) 21629 | -4/Upper Caves | Identified exit to Zhirov 21643 | -4/Upper Caves | Identified exit to Research 21938 | -4/Upper Caves | Attracted the attention of an 0b10 base 21938 | -4/Upper Caves | Learned Armory security intel 21938 | -4/Upper Caves | Learned Research garrison access intel 22346 | -4/Upper Caves | Learned Research trap positions 22379 | -4/Upper Caves | Entered Zhirov 22379 | -4/Zhirov | Discovered new exit (range 3) 22422 | -4/Zhirov | Met Zhirov 22458 | -4/Zhirov | Learned location of Quarantine (-3) 22458 | -4/Zhirov | Learned location of Testing (-2) 22458 | -4/Zhirov | Learned location of Command (-1) 22489 | -4/Zhirov | Zhirov requested help retrieving the SGEMP Prototype 22517 | -4/Zhirov | Found Alien Artifact 22517 | -4/Zhirov | Identified Integrated Reactor 22517 | -4/Zhirov | Installed Integrated Reactor, increased core energy generation (+10) 22539 | -4/Zhirov | Found Alien Artifact 22693 | -4/Zhirov | Build established: Mutant 22710 | -4/Zhirov | Identified exit to Proximity Caves 22712 | -4/Zhirov | Entered Proximity Caves 23001 | -3/Proximity Caves | Build established: Skirmisher 23092 | -3/Proximity Caves | Discovered exit to Research (range 24) 23197 | -3/Proximity Caves | Entered Research 23197 | -3/Research | Evolved 2 slots: Propulsion x1, Utility x1 23198 | -3/Research | Identified exit to Armory 23199 | -3/Research | Identified exit to Quarantine 23199 | -3/Research | Identified exit to Research 23200 | -3/Research | Loaded intel: 93 trap records 23202 | -3/Research | Loaded intel: 3 garrison access locations 23397 | -3/Research | Revision forces began assault on 0b10 23525 | -3/Research | Found Prototype Protection 23525 | -3/Research | Identified Centrium Heavy Armor Plating 23537 | -3/Research | Found Centrium Heavy Armor Plating 23542 | -3/Research | Found Centrium Heavy Armor Plating 23552 | -3/Research | Met up with Revision 17++ 23659 | -3/Research | Assembled infested ambush trap array 23876 | -3/Research | Build established: Tank 23897 | -3/Research | Research terminal network offline 23947 | -3/Research | Spotted Striker 23962 | -3/Research | Entered Armory 24328 | -3/Armory | Build established: Skirmisher 24376 | -3/Armory | Identified Transdimensional Reconstructor 24376 | -3/Armory | Warped through subspace to slip node 24376 | -3/Armory | Discovered new exit (range 1) 24376 | -3/Armory | Identified exit to Lab 24377 | -3/Armory | Entered Lab 24380 | -3/Lab | Discovered exit to Research (range 11) 24465 | -3/Lab | Hidden lab's door opened automatically 24465 | -3/Lab | Sensor layout match revealed 24466 | -3/Lab | Gained access to the hidden lab's interior 24642 | -3/Lab | Found Prototype Energy Gun 24642 | -3/Lab | Identified Tachyon Dispersion Ray 24645 | -3/Lab | Found Prototype Energy Cannon 24664 | -3/Lab | Found Prototype Device 24673 | -3/Lab | Found Prototype Hackware 24696 | -3/Lab | Found Alien Artifact 24696 | -3/Lab | Identified Core Expander 24696 | -3/Lab | Installed Core Expander, added new Power slot 24703 | -3/Lab | Found Integrated Reactor 24703 | -3/Lab | Installed Integrated Reactor, increased core energy generation (+10) 24715 | -3/Lab | Found Transdimensional Reconstructor 24717 | -3/Lab | Identified Quantum Router 24966 | -3/Lab | Build established: Hacker-Mutant 25735 | -3/Lab | Build established: Hacker-Golem 25832 | -3/Lab | Entered Research 25832 | -2/Research | Evolved 2 slots: Propulsion x1, Utility x1 25971 | -2/Research | Identified AEGIS Remote Shield 26225 | -2/Research | Discovered new exit (range 22) 26705 | -2/Research | Discovered new exit (range 22) 27259 | -2/Research | Identified exit to Testing 27489 | -2/Research | Build established: Golem 27584 | -2/Research | Entered Testing 27602 | -2/Testing | Found Prototype Ballistic Cannon 27602 | -2/Testing | Identified Omega Cannon 28064 | -2/Testing | Scanned by Researcher 28283 | -2/Testing | Found Prototype Ballistic Cannon 28308 | -2/Testing | Discovered new exit (range 23) 28431 | -2/Testing | Repaired Imp. Cooling System 28553 | -2/Testing | Identified exit to Access 28705 | -2/Testing | Found Prototype Hackware 28768 | -2/Testing | Spotted Fortress 28887 | -2/Testing | Discovered new exit (range 5) 28887 | -2/Testing | Discovered new exit (range 6) 28893 | -2/Testing | Identified exit to Section 7 28894 | -2/Testing | Entered Section 7 29027 | -2/Section 7 | Found Alien Artifact 29113 | -2/Section 7 | Found Alien Artifact 29139 | -2/Section 7 | Identified System Mapper 29236 | -2/Section 7 | Identified Integrated Dissipator 29236 | -2/Section 7 | Identified Integrated Mediator 29236 | -2/Section 7 | Installed Integrated Mediator, increased core attachment efficiency 29237 | -2/Section 7 | Installed Integrated Dissipator, increased core heat dissipation (+20) 29443 | -2/Section 7 | Build established: Hacker-Golem 29865 | -2/Section 7 | Garrison activated, responded to threat 29876 | -2/Section 7 | Found Prototype Device 29876 | -2/Section 7 | Identified Exp. Shock Absorption System 29884 | -2/Section 7 | Found Prototype Processor 29884 | -2/Section 7 | Identified Exp. Melee Analysis Suite 29903 | -2/Section 7 | Found Alien Artifact 29904 | -2/Section 7 | Warped through subspace 29977 | -2/Section 7 | Found Integrated Dissipator 29978 | -2/Section 7 | Installed Integrated Dissipator, increased core heat dissipation (+20) 30218 | -2/Section 7 | System corruption reached 10% 30288 | -2/Section 7 | Identified Microwarp Drive 30317 | -2/Section 7 | Crushed by falling debris 30404 | -2/Section 7 | Found Alien Artifact 30404 | -2/Section 7 | Identified LRC Storage 30404 | -2/Section 7 | Installed LRC Storage, increased inventory capacity (+2) 30609 | -2/Section 7 | Found Integrated Dissipator 30619 | -2/Section 7 | Installed Integrated Dissipator, increased core heat dissipation (+20) 30671 | -2/Section 7 | Spotted B-99 Colossus 30715 | -2/Section 7 | Spotted Executioner 30715 | -2/Section 7 | Spotted Executioner 30726 | -2/Section 7 | Destroyed Executioner 30736 | -2/Section 7 | Destroyed Executioner 30753 | -2/Section 7 | Found Prototype Device 30753 | -2/Section 7 | Identified Adv. Kinecellerator 30762 | -2/Section 7 | Found Prototype Processor 30762 | -2/Section 7 | Identified Exp. Core Analyzer 30843 | -2/Section 7 | Found Transdimensional Reconstructor 30847 | -2/Section 7 | Found Transdimensional Reconstructor 30853 | -2/Section 7 | Found Transdimensional Reconstructor 31096 | -2/Section 7 | Spotted S7 Guard 31173 | -2/Section 7 | Destroyed S7 Guard 31197 | -2/Section 7 | Found Prototype Protection 31197 | -2/Section 7 | Identified Hvy. Regenerative Plating 31307 | -2/Section 7 | Found Alien Artifact 31372 | -2/Section 7 | Scanned by Researcher 31373 | -2/Section 7 | Intercept squad dispatched 31380 | -2/Section 7 | Spotted Tracker 31383 | -2/Section 7 | Spotted Tracker 31387 | -2/Section 7 | Warped through subspace 31494 | -2/Section 7 | Discovered exit to Access (range 17) 31494 | -2/Section 7 | Spotted B-90 Cyclops 31501 | -2/Section 7 | Spotted S7 Guard 31505 | -2/Section 7 | Entered Access 31505 | -1/Access | Evolved 2 slots: Utility x2 31645 | -1/Access | Identified exit to Command 31684 | -1/Access | Unchained authorized (CL-0N3) 31974 | -1/Access | Identified Integrated Thermoelectric Network 31974 | -1/Access | Installed Integrated Thermoelectric Network, gained heat-energy exchange potential 32120 | -1/Access | Intercept squad dispatched 32136 | -1/Access | Entered Command 32196 | -1/Command | Repaired Enh. Biometal Leg 33081 | -1/Command | Build established: Scavenger-Golem 33458 | -1/Command | Spotted Combat Programmer 33458 | -1/Command | Spotted Combat Programmer 33534 | -1/Command | Crushed by falling debris 33636 | -1/Command | First assault squad dispatched 33679 | -1/Command | Met MAIN.C 33685 | -1/Command | 0b10 Conduit disabled 33716 | -1/Command | System corruption reached 10% 33751 | -1/Command | Destroyed MAIN.C Shell 33754 | -1/Command | MAIN.C activated Command garrisons 33755 | -1/Command | Surrendered to MAIN.C 33755 | -1/Command | Loaded intel: 59 machine locations 33755 | -1/Command | Loaded intel: 114 trap records 33755 | -1/Command | Identified exit to Surface 33755 | -1/Command | Discovered exit to Surface (range 53) 33755 | -1/Command | Discovered exit to Surface (range 81) 33767 | -1/Command | Found Centrium Heavy Armor Plating 33771 | -1/Command | Found Prototype Reactor 33779 | -1/Command | Found Centrium Heavy Armor Plating 33786 | -1/Command | Lost 3 parts (1p2u) 33830 | -1/Command | Found Prototype Protection 33830 | -1/Command | Identified SHELL Armor 33847 | -1/Command | Found Prototype Reactor 33847 | -1/Command | Identified Zero-point Reactor 33851 | -1/Command | Found Zero-point Reactor 33859 | -1/Command | Found Prototype Device 33859 | -1/Command | Identified Femtoactuators 33866 | -1/Command | Found Prototype Device 33866 | -1/Command | Identified Exp. System Purifier 33870 | -1/Command | Found Prototype Device 33870 | -1/Command | Identified Exp. Weapon Cycler 33963 | -1/Command | Identified Potential Cannon 34243 | -1/Command | MAIN.C activated Command garrisons 34254 | -1/Command | Build established: Tank 34281 | -1/Command | Unknown forces attacked Command 34281 | -1/Command | Spotted EQ-006 34281 | -1/Command | Spotted EQ-005 34281 | -1/Command | Spotted EQ-002 34281 | -1/Command | Spotted EQ-003 34281 | -1/Command | Spotted EQ-000 34281 | -1/Command | Spotted EQ-004 34282 | -1/Command | Spotted EQ-001 34283 | -1/Command | Destroyed EQ-003 34287 | -1/Command | Destroyed EQ-005 34305 | -1/Command | Destroyed EQ-001 34317 | -1/Command | Destroyed EQ-006 34354 | -1/Command | Spotted EQ-011 34356 | -1/Command | Spotted EQ-009 34361 | -1/Command | Destroyed EQ-011 34373 | -1/Command | Spotted EQ-018 34373 | -1/Command | Spotted EQ-021 34373 | -1/Command | Spotted EQ-025 34373 | -1/Command | Spotted EQ-022 34373 | -1/Command | Spotted EQ-023 34373 | -1/Command | Spotted EQ-019 34373 | -1/Command | Spotted EQ-034 34377 | -1/Command | Destroyed EQ-022 34379 | -1/Command | Spotted EQ-020 34380 | -1/Command | Destroyed EQ-025 34394 | -1/Command | Destroyed EQ-034 34415 | -1/Command | Lost 4 allies 34425 | -1/Command | Identified Singularity Reactor 34437 | -1/Command | Spotted EQ-037 34444 | -1/Command | Destroyed EQ-037 34479 | -1/Command | Destroyed EQ-049 34479 | -1/Command | Spotted EQ-040 34479 | -1/Command | Spotted EQ-039 34479 | -1/Command | Spotted EQ-042 34479 | -1/Command | Spotted EQ-038 34487 | -1/Command | Destroyed EQ-042 34490 | -1/Command | Destroyed EQ-039 34510 | -1/Command | Spotted EQ-017 34512 | -1/Command | Spotted EQ-046 34512 | -1/Command | Spotted EQ-051 34522 | -1/Command | Spotted EQ-031 34524 | -1/Command | Destroyed EQ-051 34524 | -1/Command | Destroyed EQ-017 34526 | -1/Command | Destroyed EQ-046 34534 | -1/Command | Spotted EQ-026 34537 | -1/Command | Destroyed EQ-031 34542 | -1/Command | Core integrity fell below 50% 34545 | -1/Command | Lost 4 allies 34558 | -1/Command | Destroyed 8 combat bots 34568 | -1/Command | Destroyed EQ-026 34568 | -1/Command | Spotted EQ-053 34578 | -1/Command | Spotted EQ-045 34579 | -1/Command | Spotted EQ-081 34579 | -1/Command | Spotted EQ-060 34609 | -1/Command | Spotted EQ-064 34621 | -1/Command | Spotted EQ-073 34636 | -1/Command | Destroyed EQ-073 34638 | -1/Command | Spotted EQ-077 34678 | -1/Command | Spotted EQ-058 34681 | -1/Command | Destroyed EQ-085 34683 | -1/Command | Spotted EQ-106 34683 | -1/Command | Spotted EQ-100 34683 | -1/Command | Spotted EQ-104 34683 | -1/Command | Spotted EQ-084 34693 | -1/Command | Spotted EQ-027 34695 | -1/Command | Destroyed EQ-084 34696 | -1/Command | Attackers retreated from Command 34697 | *** | Fortifying 0b10! Last Messages --------------- 34684_ Penetrated by Slug. 34686_ EQ-058 knocked back. 34687_ MAIN.C suffers critical hit (Destroy). 34687_ Penetrated by Slug. 34690_ MAIN.C knocked back. 34690_ Penetrated by Slug. 34692_ MAIN.C knocked back. 34693_ Penetrated by Slug. 34695_ EQ-084 destroyed. 34696_ ALERT: Enemy forces retreating. MAIN.C: I admit your assistance was pivotal here. It looks like I was right to trust you. This attack appears to have been designed to merely test our defenses, although it was nearly effective enough to force me to take the conflict to the next level. Investigating the origins of these bots should be one of our highest priorities... [Achievement: Stronghold] [Achievement: Winner's Signature] Map ----- +----------------------------------------------------+ | #???????????????????????????????????#?#?#???? | | ######???????????????????????????????????#?#?#???? | | #??????????????????????????????????????#?#?#???? | | #??????????????????????????????????????#?#?#???? | | ###??????????????????????????????????????#?#?#???? | | #????????????????????????????????????????#?#?#???? | | #####????????????????????????????????????#?#?#???? | | #????????????????????????????????????#?#?#???? | | #????????????????????????????????????#?#?#???? | | "" #????????????????????????????????????#?#?#???? | | "" #????????????????????????????????????#?#?#???? | | "" #????????????????????????????????????#?#?#???? | | "" #????????????????????????????????????#?#?#???? | | #????????????????????????????????????#?#?#???? | | #?????###########################????#?#?#???? | | ##+##?????#?????? ?????? ????????#????#?#?#???? | | #??????#?###### ################?#????#?#?#???? | | #??????#?# " ################ | | #??????#?# #?#????????????? | | # ##??????#?# % ################ | | # #???????#?# ==! % % %% | | #+#######?#?# % [! M% % | | #?#?# =!! %!%! %% | | ! #?#?# % != ################ | | #?#?# % % #?#????????????? | | " " #?#?# % @ = ################ | | "T" #?### % #?#????#?#?#???? | | "" #?# # #?#????#?#?#???? | | ### = % %% #?#????#?#?#???? | | # # = #?#????#?#?#???? | | # [ # % % #?#????#?#?#???? | | # ## %= #?#????#?#?#???? | | % % #?#????#?#?#???? | | %%% % " #?#????#?#?#???? | | % ]%! %% %% #?#????#?#?#???? | | ## ### % #?#????#?#?#???? | | %%# # #?#????#?#?#???? | | " ### #?#????#?#?#???? | | "##?############### ## ####?#????#?#?#???? | | # ###???????????????? #???#????#?#?#???? | | # #?###########################????#?#?#???? | | # #????????????????????????????????#?#?#???? | | " #????????????????????????????????#?#?#???? | | # #????????????????????????????????#?#?#???? | | # #????????????????????????????????#?#?#???? | | # #????????????????????????????????#?#?#???? | | #[ #????????????????????????????????#?#?#???? | | # #????????????????????????????????#?#?#???? | | #######????????????????????????????????#?#?#???? | | ###??????????????????????????????????????#?#?#???? | +----------------------------------------------------+ Best States ------------- Heat Dissipation 172 Energy Generation 95 Energy Capacity 3100 Matter Stores 400 Matter Capacity 450 Sight Range 23 Robot Scan Range 16 Terrain Scan Range 24 Terrain Scan Density 2010 Jamming Range 16 Additional Mass Support 20 Armor Coverage 2150 Resistance: KI 20 Resistance: TH 15 Resistance: EX 15 Resistance: EM 90 Resistance: I 15 Resistance: S 15 Resistance: P 15 Propulsion Shielding 66 Weapon Shielding 66 Weapon Cycling 30 Melee Speed Boost 50 Phase Shifting 20 Evasion (%) 60 Targeting Accuracy 20 Core Analysis 8 Recoil Reduction 2 Salvage Targeting 4 Offensive Hacking 34 Defensive Hacking 25 Item Schematics ----------------- Plasma Cutter | -8/Materials | Hacked Assault Drone Bay | -4/Zhirov | Free Exp. Heat Sink | -4/Zhirov | Free Exp. Optical Array | -4/Zhirov | Free Imp. Arc Thrower | -4/Zhirov | Free Ragnarok Missile Launcher | -2/Testing | Archive Imp. Matter Compressor | -2/Testing | Archive Hvy. Proton Cannon | -2/Testing | Archive Robot Schematics ------------------ G-73 Enforcer | -2/Testing | Archive R-06 Scavenger | -2/Testing | Archive Fabricated ------------ Plasma Cutter | x2 | -6/Factory Repaired ---------- Adv. Treads | 13% | -6/Factory Centrium Medium Armor Plating | 81% | -4/Factory Imp. Cooling System | 22% | -2/Testing Enh. Biometal Leg | 68% | -1/Command Studied --------- Grenade Launcher | -8/Materials | Hacked Lgt. Treads | -8/Materials | Hacked EM Pulse Gun | -8/Materials | Hacked Adv. Treads | -8/Materials | Hacked Gatling Laser | -6/Factory | Hacked Myomer Leg | -3/Research | Hacked Quantum Reactor | -2/Testing | Hacked Enh. Nova Cannon | -2/Testing | Hacked Com. HERF Cannon | -2/Testing | Hacked Lgt. Quantum Reactor | -2/Testing | Hacked Hvy. Rocket Launcher | -2/Testing | Hacked Alien Tech Used ----------------- Integrated Reactor Transdimensional Reconstructor Core Expander Integrated Mediator Integrated Dissipator Microwarp Drive LRC Storage Integrated Thermoelectric Network Achievements -------------- Full Golem Stronghold This Is My Hole Winner's Signature Challenges ------------ None Game ------ Seed DisruptionPhaseShredder Manual? 0 Play Time 04:29:50 Cumulative 421.4 hours Start 2025.11.25 @ 21:45:58 End 2025.11.26 @ 23:30:49 Sessions 5 Manual Loads 0 Difficulty Rogue Special Mode None Game No. 137 Rogue 137 Adventurer 0 Explorer 0 Win Type 8 Total 14 Types 4/0/6/0/1/0/1/0/1/1 Lore% 80 Gallery% 87 Achievement% 73 Wizard Run 0 Options --------- Layout 1 ASCII 0 Keyboard 1 Movement Arrows Keybinds 0 Fullscreen 1 Font 24/Smallcaps Map View 50x35 Zoom Use 0% Tactical HUD 1 Map Filters NONE Filters NONE Steam 1 RUN: cad20e19-65db-4ab8-b24d-d2c39042bff3